Body,Body Name,Transaction Date,Transaction Number,Amount in sterling,Supplier Name,Supplier ID,Expense Area ,Expense Type,Expense Code
http://statistics.data.gov.uk/doc/local-authority/00CC,BarnsleyMBC,31/10/2023,5100344853,"7,841.41",A COOLE ELECTRICAL LTD,551744,BH,Fixtures and Fittings - Purchase,220001
http://statistics.data.gov.uk/doc/local-authority/00CC,BarnsleyMBC,18/10/2023,5100344277,571.31,ABILITY HANDLING LTD,509490,BH,Training Courses,112001
http://statistics.data.gov.uk/doc/local-authority/00CC,BarnsleyMBC,19/10/2023,5100344352,"2,282.69",Absoft Limited,538052,BH,Basic pay - Agency Fees,104001
http://statistics.data.gov.uk/doc/local-authority/00CC,BarnsleyMBC,19/10/2023,5100344350,"2,466.62",Absoft Limited,538052,BH,Basic pay - Agency Fees,104001
http://statistics.data.gov.uk/doc/local-authority/00CC,BarnsleyMBC,16/10/2023,5100344160,565.19,ADRIAN WELCH GLASS & GLAZING LTD,508511,BH,Direct - Building Items,403013
http://statistics.data.gov.uk/doc/local-authority/00CC,BarnsleyMBC,02/10/2023,5100343583,"19,825.20",AJS Services (Yorkshire) Ltd,552687,BH,,
http://statistics.data.gov.uk/doc/local-authority/00CC,BarnsleyMBC,04/10/2023,5100343495,708.46,AKW MEDICARE LTD,526870,BH,,
http://statistics.data.gov.uk/doc/local-authority/00CC,BarnsleyMBC,06/10/2023,5100343764,"3,245.04",AKW MEDICARE LTD,526870,BH,,
http://statistics.data.gov.uk/doc/local-authority/00CC,BarnsleyMBC,13/10/2023,5100344098,"3,245.04",AKW MEDICARE LTD,526870,BH,,
http://statistics.data.gov.uk/doc/local-authority/00CC,BarnsleyMBC,06/10/2023,5100343679,"1,829.28",AMP Biomass Fuel Ltd TA AMP Clean E,535019,BH,Energy - Fuel Oil,210003
http://statistics.data.gov.uk/doc/local-authority/00CC,BarnsleyMBC,06/10/2023,5100343680,"2,002.32",AMP Biomass Fuel Ltd TA AMP Clean E,535019,BH,Direct - UPVC Parts,403015
http://statistics.data.gov.uk/doc/local-authority/00CC,BarnsleyMBC,06/10/2023,5100343828,"5,079.96",AMP Biomass Fuel Ltd TA AMP Clean E,535019,BH,Fixtures and Fittings - Purchase,220001
http://statistics.data.gov.uk/doc/local-authority/00CC,BarnsleyMBC,06/10/2023,5100343829,"6,280.12",AMP Biomass Fuel Ltd TA AMP Clean E,535019,BH,Fixtures and Fittings - Purchase,220001
http://statistics.data.gov.uk/doc/local-authority/00CC,BarnsleyMBC,17/10/2023,5100344258,"7,465.44",AMP Biomass Fuel Ltd TA AMP Clean E,535019,BH,Cleaning -  Buildings - External Provide,240001
http://statistics.data.gov.uk/doc/local-authority/00CC,BarnsleyMBC,17/10/2023,5100344257,"8,026.58",AMP Biomass Fuel Ltd TA AMP Clean E,535019,BH,Energy - Fuel Oil,210003
http://statistics.data.gov.uk/doc/local-authority/00CC,BarnsleyMBC,06/10/2023,5100343784,"5,291.54",APPLY SCAFFOLDING SERVICES LTD,551732,BH,Printing - External Provider,422001
http://statistics.data.gov.uk/doc/local-authority/00CC,BarnsleyMBC,13/10/2023,5100344093,"1,669.25",APPLY SCAFFOLDING SERVICES LTD,551732,BH,Basic pay - Agency Fees,104001
http://statistics.data.gov.uk/doc/local-authority/00CC,BarnsleyMBC,13/10/2023,5100344091,"2,030.90",APPLY SCAFFOLDING SERVICES LTD,551732,BH,,
http://statistics.data.gov.uk/doc/local-authority/00CC,BarnsleyMBC,13/10/2023,5100344092,"9,492.80",APPLY SCAFFOLDING SERVICES LTD,551732,BH,Direct - Building Items,403013
http://statistics.data.gov.uk/doc/local-authority/00CC,BarnsleyMBC,13/10/2023,5100344090,"44,539.45",APPLY SCAFFOLDING SERVICES LTD,551732,BH,Computer Software -  Licenses,426010
http://statistics.data.gov.uk/doc/local-authority/00CC,BarnsleyMBC,31/10/2023,5100344856,945.91,APPLY SCAFFOLDING SERVICES LTD,551732,BH,Direct - Building Items,403013
http://statistics.data.gov.uk/doc/local-authority/00CC,BarnsleyMBC,18/10/2023,5100344324,"4,660.20",ARP Research Ltd,532218,BH,Direct - Building Items,403013
http://statistics.data.gov.uk/doc/local-authority/00CC,BarnsleyMBC,18/10/2023,5100344279,"9,123.44",BAAS CONSTRUCTION LIMITED,552099,BH,Main contractor,506011
http://statistics.data.gov.uk/doc/local-authority/00CC,BarnsleyMBC,19/10/2023,5100344373,"1,002.13",BAAS CONSTRUCTION LIMITED,552099,BH,Basic pay - Agency Fees,104001
http://statistics.data.gov.uk/doc/local-authority/00CC,BarnsleyMBC,31/10/2023,5100344869,984,BARNSLEY REFRIGERATION SERVS LTD,551173,BH,Main contractor,506011
http://statistics.data.gov.uk/doc/local-authority/00CC,BarnsleyMBC,04/10/2023,5100343640,"8,499.99",BCB TRADING LTD,550198,BH,,
http://statistics.data.gov.uk/doc/local-authority/00CC,BarnsleyMBC,18/10/2023,5100344310,"24,000.00",BDO LLP,526720,BH,Main contractor,506011
http://statistics.data.gov.uk/doc/local-authority/00CC,BarnsleyMBC,04/10/2023,5100343675,841.66,BMBC - INCOME A/C,510654,BH,Fixtures and Fittings - Purchase,220001
http://statistics.data.gov.uk/doc/local-authority/00CC,BarnsleyMBC,13/10/2023,5100344064,"20,758.54",BMBC - INCOME A/C,510654,BH,,
http://statistics.data.gov.uk/doc/local-authority/00CC,BarnsleyMBC,13/10/2023,5100344063,"55,143.73",BMBC - INCOME A/C,510654,BH,ICT Services and Support,426014
http://statistics.data.gov.uk/doc/local-authority/00CC,BarnsleyMBC,19/10/2023,5100344414,"1,172.20",BMBC - INCOME A/C,510654,BH,Basic pay - Agency Fees,104001
http://statistics.data.gov.uk/doc/local-authority/00CC,BarnsleyMBC,20/10/2023,5100344450,"1,325.20",BMBC - INCOME A/C,510654,BH,Direct - Tools & Parts,403019
http://statistics.data.gov.uk/doc/local-authority/00CC,BarnsleyMBC,20/10/2023,5100344451,"1,325.20",BMBC - INCOME A/C,510654,BH,Property Rents,211002
http://statistics.data.gov.uk/doc/local-authority/00CC,BarnsleyMBC,20/10/2023,5100344524,"2,862.00",BMBC - INCOME A/C,510654,BH,Direct - Building Items,403013
http://statistics.data.gov.uk/doc/local-authority/00CC,BarnsleyMBC,23/10/2023,5100344556,"1,860.77",BMBC - INCOME A/C,510654,BH,Energy - Electricity,210001
http://statistics.data.gov.uk/doc/local-authority/00CC,BarnsleyMBC,25/10/2023,5100344637,723.9,BMBC - INCOME A/C,510654,BH,Direct - Tools & Parts,403019
http://statistics.data.gov.uk/doc/local-authority/00CC,BarnsleyMBC,25/10/2023,5100344638,828.49,BMBC - INCOME A/C,510654,BH,Water Rates,213001
http://statistics.data.gov.uk/doc/local-authority/00CC,BarnsleyMBC,25/10/2023,5100344640,"1,401.98",BMBC - INCOME A/C,510654,BH,Expenses - Miscellaneous,460012
http://statistics.data.gov.uk/doc/local-authority/00CC,BarnsleyMBC,25/10/2023,5100344639,"1,678.15",BMBC - INCOME A/C,510654,BH,Printing - External Provider,422001
http://statistics.data.gov.uk/doc/local-authority/00CC,BarnsleyMBC,25/10/2023,5100344659,"125,570.83",BMBC - INCOME A/C,510654,BH,Energy - Electricity,210001
http://statistics.data.gov.uk/doc/local-authority/00CC,BarnsleyMBC,25/10/2023,5100344658,"125,932.38",BMBC - INCOME A/C,510654,BH,Transport Leasing - Long term agreements,320001
http://statistics.data.gov.uk/doc/local-authority/00CC,BarnsleyMBC,26/10/2023,5100344344,768,BMBC - INCOME A/C,510654,BH,Training Courses,112001
http://statistics.data.gov.uk/doc/local-authority/00CC,BarnsleyMBC,03/10/2023,5100343458,542.4,BMBC - PRINTING,511957,BH,,
http://statistics.data.gov.uk/doc/local-authority/00CC,BarnsleyMBC,18/10/2023,5100344306,"1,624.94",BMBC - PRINTING,511957,BH,Energy - Fuel Oil,210003
http://statistics.data.gov.uk/doc/local-authority/00CC,BarnsleyMBC,06/10/2023,5100343678,600,BOS OFFICE SUPPLIES GROUP LTD,526135,BH,Equipment - Electrical Goods,400007
http://statistics.data.gov.uk/doc/local-authority/00CC,BarnsleyMBC,25/10/2023,5200084565,"-3,422.06",BUSINESS STREAM,585193,BH,Energy - Electricity,210001
http://statistics.data.gov.uk/doc/local-authority/00CC,BarnsleyMBC,25/10/2023,5200084547,551.5,BUSINESS STREAM,585193,BH,,
http://statistics.data.gov.uk/doc/local-authority/00CC,BarnsleyMBC,25/10/2023,5200084632,565.84,BUSINESS STREAM,585193,BH,Water Rates,213001
http://statistics.data.gov.uk/doc/local-authority/00CC,BarnsleyMBC,25/10/2023,5200084546,575.76,BUSINESS STREAM,585193,BH,,
http://statistics.data.gov.uk/doc/local-authority/00CC,BarnsleyMBC,25/10/2023,5200084579,607.08,BUSINESS STREAM,585193,BH,Water Rates,213001
http://statistics.data.gov.uk/doc/local-authority/00CC,BarnsleyMBC,25/10/2023,5200084544,619.43,BUSINESS STREAM,585193,BH,,
http://statistics.data.gov.uk/doc/local-authority/00CC,BarnsleyMBC,25/10/2023,5200084542,633.7,BUSINESS STREAM,585193,BH,Water Rates,213001
http://statistics.data.gov.uk/doc/local-authority/00CC,BarnsleyMBC,25/10/2023,5200084564,799.16,BUSINESS STREAM,585193,BH,Water Rates,213001
http://statistics.data.gov.uk/doc/local-authority/00CC,BarnsleyMBC,25/10/2023,5200084630,809.76,BUSINESS STREAM,585193,BH,Water Rates,213001
http://statistics.data.gov.uk/doc/local-authority/00CC,BarnsleyMBC,25/10/2023,5200084629,902.15,BUSINESS STREAM,585193,BH,Water Rates,213001
http://statistics.data.gov.uk/doc/local-authority/00CC,BarnsleyMBC,25/10/2023,5200084657,962,BUSINESS STREAM,585193,BH,Water Rates,213001
http://statistics.data.gov.uk/doc/local-authority/00CC,BarnsleyMBC,25/10/2023,5200084574,972.49,BUSINESS STREAM,585193,BH,Main contractor,506011
http://statistics.data.gov.uk/doc/local-authority/00CC,BarnsleyMBC,25/10/2023,5200084669,987.86,BUSINESS STREAM,585193,BH,Water Rates,213001
http://statistics.data.gov.uk/doc/local-authority/00CC,BarnsleyMBC,25/10/2023,5200084550,"1,232.66",BUSINESS STREAM,585193,BH,Water Rates,213001
http://statistics.data.gov.uk/doc/local-authority/00CC,BarnsleyMBC,25/10/2023,5200084537,"1,272.36",BUSINESS STREAM,585193,BH,Water Rates,213001
http://statistics.data.gov.uk/doc/local-authority/00CC,BarnsleyMBC,25/10/2023,5200084567,"1,865.87",BUSINESS STREAM,585193,BH,Printing - External Provider,422001
http://statistics.data.gov.uk/doc/local-authority/00CC,BarnsleyMBC,25/10/2023,5200084539,"2,529.00",BUSINESS STREAM,585193,BH,Water Rates,213001
http://statistics.data.gov.uk/doc/local-authority/00CC,BarnsleyMBC,25/10/2023,5200084578,"2,625.77",BUSINESS STREAM,585193,BH,Water Rates,213001
http://statistics.data.gov.uk/doc/local-authority/00CC,BarnsleyMBC,25/10/2023,5200084566,"3,153.54",BUSINESS STREAM,585193,BH,Water Rates,213001
http://statistics.data.gov.uk/doc/local-authority/00CC,BarnsleyMBC,25/10/2023,5200084581,"3,730.75",BUSINESS STREAM,585193,BH,Water Rates,213001
http://statistics.data.gov.uk/doc/local-authority/00CC,BarnsleyMBC,25/10/2023,5200084536,"6,150.97",BUSINESS STREAM,585193,BH,Water Rates,213001
http://statistics.data.gov.uk/doc/local-authority/00CC,BarnsleyMBC,26/10/2023,5200084607,-925.37,BUSINESS STREAM,585193,BH,Water Rates,213001
http://statistics.data.gov.uk/doc/local-authority/00CC,BarnsleyMBC,26/10/2023,5200084587,562.14,BUSINESS STREAM,585193,BH,Water Rates,213001
http://statistics.data.gov.uk/doc/local-authority/00CC,BarnsleyMBC,26/10/2023,5200084621,617.59,BUSINESS STREAM,585193,BH,Water Rates,213001
http://statistics.data.gov.uk/doc/local-authority/00CC,BarnsleyMBC,26/10/2023,5200084585,687.79,BUSINESS STREAM,585193,BH,Water Rates,213001
http://statistics.data.gov.uk/doc/local-authority/00CC,BarnsleyMBC,26/10/2023,5200084584,902.15,BUSINESS STREAM,585193,BH,Water Rates,213001
http://statistics.data.gov.uk/doc/local-authority/00CC,BarnsleyMBC,26/10/2023,5200084624,991.57,BUSINESS STREAM,585193,BH,Direct - Building Items,403013
http://statistics.data.gov.uk/doc/local-authority/00CC,BarnsleyMBC,26/10/2023,5200084612,"1,072.87",BUSINESS STREAM,585193,BH,Water Rates,213001
http://statistics.data.gov.uk/doc/local-authority/00CC,BarnsleyMBC,30/10/2023,5100344789,560.3,CANNON HALL FARM LTD,500798,BH,,
http://statistics.data.gov.uk/doc/local-authority/00CC,BarnsleyMBC,04/10/2023,1900027453,"50,000.00",Charis Grants Ltd,540662,BH,Expenses - Compensation Payments,460010
http://statistics.data.gov.uk/doc/local-authority/00CC,BarnsleyMBC,09/10/2023,1900027494,"50,000.00",Charis Grants Ltd,540662,BH,,
http://statistics.data.gov.uk/doc/local-authority/00CC,BarnsleyMBC,05/10/2023,5100343768,744,Citrus Training Ltd,539103,BH,,
http://statistics.data.gov.uk/doc/local-authority/00CC,BarnsleyMBC,02/10/2023,5100343445,"1,253.40",CITY PLUMBING SUPPLIES,530034,BH,,
http://statistics.data.gov.uk/doc/local-authority/00CC,BarnsleyMBC,02/10/2023,5100343434,"1,367.88",CITY PLUMBING SUPPLIES,530034,BH,,
http://statistics.data.gov.uk/doc/local-authority/00CC,BarnsleyMBC,02/10/2023,5100343444,"1,463.28",CITY PLUMBING SUPPLIES,530034,BH,,
http://statistics.data.gov.uk/doc/local-authority/00CC,BarnsleyMBC,02/10/2023,5100343446,"1,583.41",CITY PLUMBING SUPPLIES,530034,BH,,
http://statistics.data.gov.uk/doc/local-authority/00CC,BarnsleyMBC,02/10/2023,5100343443,"2,474.88",CITY PLUMBING SUPPLIES,530034,BH,,
http://statistics.data.gov.uk/doc/local-authority/00CC,BarnsleyMBC,03/10/2023,5100343470,"2,569.15",CITY PLUMBING SUPPLIES,530034,BH,,
http://statistics.data.gov.uk/doc/local-authority/00CC,BarnsleyMBC,04/10/2023,5100343538,515.59,CITY PLUMBING SUPPLIES,530034,BH,Direct - Building Items,403013
http://statistics.data.gov.uk/doc/local-authority/00CC,BarnsleyMBC,04/10/2023,5100343550,540.12,CITY PLUMBING SUPPLIES,530034,BH,,
http://statistics.data.gov.uk/doc/local-authority/00CC,BarnsleyMBC,04/10/2023,5100343668,833.98,CITY PLUMBING SUPPLIES,530034,BH,Main contractor,506011
http://statistics.data.gov.uk/doc/local-authority/00CC,BarnsleyMBC,04/10/2023,5100343549,892.15,CITY PLUMBING SUPPLIES,530034,BH,Direct - Building Items,403013
http://statistics.data.gov.uk/doc/local-authority/00CC,BarnsleyMBC,04/10/2023,5100343670,"1,121.63",CITY PLUMBING SUPPLIES,530034,BH,Direct - Building Items,403013
http://statistics.data.gov.uk/doc/local-authority/00CC,BarnsleyMBC,04/10/2023,5100343672,"1,256.19",CITY PLUMBING SUPPLIES,530034,BH,Direct - Building Items,403013
http://statistics.data.gov.uk/doc/local-authority/00CC,BarnsleyMBC,04/10/2023,5100343671,"1,260.45",CITY PLUMBING SUPPLIES,530034,BH,Direct - Building Items,403013
http://statistics.data.gov.uk/doc/local-authority/00CC,BarnsleyMBC,04/10/2023,5100343674,"1,327.25",CITY PLUMBING SUPPLIES,530034,BH,,
http://statistics.data.gov.uk/doc/local-authority/00CC,BarnsleyMBC,04/10/2023,5100343666,"1,360.48",CITY PLUMBING SUPPLIES,530034,BH,Direct - Building Items,403013
http://statistics.data.gov.uk/doc/local-authority/00CC,BarnsleyMBC,04/10/2023,5100343667,"1,445.35",CITY PLUMBING SUPPLIES,530034,BH,Direct - Building Items,403013
http://statistics.data.gov.uk/doc/local-authority/00CC,BarnsleyMBC,05/10/2023,5100343600,"1,069.34",CITY PLUMBING SUPPLIES,530034,BH,,
http://statistics.data.gov.uk/doc/local-authority/00CC,BarnsleyMBC,05/10/2023,5100343673,"1,155.67",CITY PLUMBING SUPPLIES,530034,BH,,
http://statistics.data.gov.uk/doc/local-authority/00CC,BarnsleyMBC,05/10/2023,5100343607,"1,399.68",CITY PLUMBING SUPPLIES,530034,BH,Direct - Building Items,403013
http://statistics.data.gov.uk/doc/local-authority/00CC,BarnsleyMBC,05/10/2023,5100343599,"2,046.84",CITY PLUMBING SUPPLIES,530034,BH,External Recruitment Costs,113002
http://statistics.data.gov.uk/doc/local-authority/00CC,BarnsleyMBC,05/10/2023,5100343601,"2,082.96",CITY PLUMBING SUPPLIES,530034,BH,Security Hire,424009
http://statistics.data.gov.uk/doc/local-authority/00CC,BarnsleyMBC,06/10/2023,5100343632,791.57,CITY PLUMBING SUPPLIES,530034,BH,Main contractor,506011
http://statistics.data.gov.uk/doc/local-authority/00CC,BarnsleyMBC,09/10/2023,5100343847,"-1,763.67",CITY PLUMBING SUPPLIES,530034,BH,Expenses - Compensation Payments,460010
http://statistics.data.gov.uk/doc/local-authority/00CC,BarnsleyMBC,09/10/2023,5100343769,621.9,CITY PLUMBING SUPPLIES,530034,BH,,
http://statistics.data.gov.uk/doc/local-authority/00CC,BarnsleyMBC,09/10/2023,5100343854,"1,008.02",CITY PLUMBING SUPPLIES,530034,BH,Direct - Building Items,403013
http://statistics.data.gov.uk/doc/local-authority/00CC,BarnsleyMBC,09/10/2023,5100343858,"1,083.61",CITY PLUMBING SUPPLIES,530034,BH,Energy - Fuel Oil,210003
http://statistics.data.gov.uk/doc/local-authority/00CC,BarnsleyMBC,09/10/2023,5100343855,"1,115.15",CITY PLUMBING SUPPLIES,530034,BH,Direct - Building Items,403013
http://statistics.data.gov.uk/doc/local-authority/00CC,BarnsleyMBC,09/10/2023,5100343853,"1,194.68",CITY PLUMBING SUPPLIES,530034,BH,Main contractor,506011
http://statistics.data.gov.uk/doc/local-authority/00CC,BarnsleyMBC,09/10/2023,5100343693,"1,232.64",CITY PLUMBING SUPPLIES,530034,BH,Direct - Building Items,403013
http://statistics.data.gov.uk/doc/local-authority/00CC,BarnsleyMBC,09/10/2023,5100343850,"1,256.19",CITY PLUMBING SUPPLIES,530034,BH,Direct - Building Items,403013
http://statistics.data.gov.uk/doc/local-authority/00CC,BarnsleyMBC,09/10/2023,5100343845,"1,256.19",CITY PLUMBING SUPPLIES,530034,BH,Direct - UPVC Parts,403015
http://statistics.data.gov.uk/doc/local-authority/00CC,BarnsleyMBC,09/10/2023,5100343852,"1,403.04",CITY PLUMBING SUPPLIES,530034,BH,External Recruitment Costs,113002
http://statistics.data.gov.uk/doc/local-authority/00CC,BarnsleyMBC,09/10/2023,5100343856,"1,417.68",CITY PLUMBING SUPPLIES,530034,BH,Main contractor,506011
http://statistics.data.gov.uk/doc/local-authority/00CC,BarnsleyMBC,09/10/2023,5100343849,"1,516.15",CITY PLUMBING SUPPLIES,530034,BH,Direct - Building Items,403013
http://statistics.data.gov.uk/doc/local-authority/00CC,BarnsleyMBC,09/10/2023,5100343859,"1,570.98",CITY PLUMBING SUPPLIES,530034,BH,Direct - UPVC Parts,403015
http://statistics.data.gov.uk/doc/local-authority/00CC,BarnsleyMBC,09/10/2023,5100343846,"1,763.67",CITY PLUMBING SUPPLIES,530034,BH,Direct - Building Items,403013
http://statistics.data.gov.uk/doc/local-authority/00CC,BarnsleyMBC,09/10/2023,5100343848,"1,763.67",CITY PLUMBING SUPPLIES,530034,BH,Direct - Building Items,403013
http://statistics.data.gov.uk/doc/local-authority/00CC,BarnsleyMBC,09/10/2023,5100343694,"1,944.24",CITY PLUMBING SUPPLIES,530034,BH,Fixtures and Fittings - Purchase,220001
http://statistics.data.gov.uk/doc/local-authority/00CC,BarnsleyMBC,09/10/2023,5100343824,"2,175.12",CITY PLUMBING SUPPLIES,530034,BH,Direct - Building Items,403013
http://statistics.data.gov.uk/doc/local-authority/00CC,BarnsleyMBC,09/10/2023,5100343695,"2,313.60",CITY PLUMBING SUPPLIES,530034,BH,,
http://statistics.data.gov.uk/doc/local-authority/00CC,BarnsleyMBC,09/10/2023,5100343857,"3,905.28",CITY PLUMBING SUPPLIES,530034,BH,,
http://statistics.data.gov.uk/doc/local-authority/00CC,BarnsleyMBC,10/10/2023,5100343792,616.32,CITY PLUMBING SUPPLIES,530034,BH,Main contractor,506011
http://statistics.data.gov.uk/doc/local-authority/00CC,BarnsleyMBC,10/10/2023,5100343791,642.84,CITY PLUMBING SUPPLIES,530034,BH,Direct - Building Items,403013
http://statistics.data.gov.uk/doc/local-authority/00CC,BarnsleyMBC,11/10/2023,5100343927,824.49,CITY PLUMBING SUPPLIES,530034,BH,Direct - UPVC Parts,403015
http://statistics.data.gov.uk/doc/local-authority/00CC,BarnsleyMBC,11/10/2023,5100343926,"1,296.10",CITY PLUMBING SUPPLIES,530034,BH,,
http://statistics.data.gov.uk/doc/local-authority/00CC,BarnsleyMBC,11/10/2023,5100343925,"1,716.54",CITY PLUMBING SUPPLIES,530034,BH,Expenses - Miscellaneous,460012
http://statistics.data.gov.uk/doc/local-authority/00CC,BarnsleyMBC,12/10/2023,5100344046,977.21,CITY PLUMBING SUPPLIES,530034,BH,Expenses - Miscellaneous,460012
http://statistics.data.gov.uk/doc/local-authority/00CC,BarnsleyMBC,13/10/2023,5100344045,"1,004.77",CITY PLUMBING SUPPLIES,530034,BH,,
http://statistics.data.gov.uk/doc/local-authority/00CC,BarnsleyMBC,13/10/2023,5100344109,"3,848.40",CITY PLUMBING SUPPLIES,530034,BH,Main contractor,506011
http://statistics.data.gov.uk/doc/local-authority/00CC,BarnsleyMBC,13/10/2023,5100343963,"5,327.40",CITY PLUMBING SUPPLIES,530034,BH,,
http://statistics.data.gov.uk/doc/local-authority/00CC,BarnsleyMBC,16/10/2023,5100344009,535.63,CITY PLUMBING SUPPLIES,530034,BH,Direct - Tools & Parts,403019
http://statistics.data.gov.uk/doc/local-authority/00CC,BarnsleyMBC,16/10/2023,5100344167,"1,142.88",CITY PLUMBING SUPPLIES,530034,BH,External Recruitment Costs,113002
http://statistics.data.gov.uk/doc/local-authority/00CC,BarnsleyMBC,16/10/2023,5100344171,"1,224.65",CITY PLUMBING SUPPLIES,530034,BH,,
http://statistics.data.gov.uk/doc/local-authority/00CC,BarnsleyMBC,16/10/2023,5100344042,"1,224.65",CITY PLUMBING SUPPLIES,530034,BH,,
http://statistics.data.gov.uk/doc/local-authority/00CC,BarnsleyMBC,16/10/2023,5100344043,"1,224.65",CITY PLUMBING SUPPLIES,530034,BH,,
http://statistics.data.gov.uk/doc/local-authority/00CC,BarnsleyMBC,16/10/2023,5100344164,"1,358.80",CITY PLUMBING SUPPLIES,530034,BH,Direct - Building Items,403013
http://statistics.data.gov.uk/doc/local-authority/00CC,BarnsleyMBC,16/10/2023,5100344014,"1,439.28",CITY PLUMBING SUPPLIES,530034,BH,Direct - Building Items,403013
http://statistics.data.gov.uk/doc/local-authority/00CC,BarnsleyMBC,16/10/2023,5100344170,"1,581.60",CITY PLUMBING SUPPLIES,530034,BH,,
http://statistics.data.gov.uk/doc/local-authority/00CC,BarnsleyMBC,16/10/2023,5100344010,"1,900.80",CITY PLUMBING SUPPLIES,530034,BH,,
http://statistics.data.gov.uk/doc/local-authority/00CC,BarnsleyMBC,17/10/2023,5100344166,545.1,CITY PLUMBING SUPPLIES,530034,BH,,
http://statistics.data.gov.uk/doc/local-authority/00CC,BarnsleyMBC,17/10/2023,5100344081,668.38,CITY PLUMBING SUPPLIES,530034,BH,,
http://statistics.data.gov.uk/doc/local-authority/00CC,BarnsleyMBC,17/10/2023,5100344080,"1,239.36",CITY PLUMBING SUPPLIES,530034,BH,,
http://statistics.data.gov.uk/doc/local-authority/00CC,BarnsleyMBC,17/10/2023,5100344165,"1,362.84",CITY PLUMBING SUPPLIES,530034,BH,Direct - Building Items,403013
http://statistics.data.gov.uk/doc/local-authority/00CC,BarnsleyMBC,17/10/2023,5100344082,"1,818.34",CITY PLUMBING SUPPLIES,530034,BH,,
http://statistics.data.gov.uk/doc/local-authority/00CC,BarnsleyMBC,18/10/2023,5100344168,"1,392.43",CITY PLUMBING SUPPLIES,530034,BH,,
http://statistics.data.gov.uk/doc/local-authority/00CC,BarnsleyMBC,18/10/2023,5100344141,"1,710.72",CITY PLUMBING SUPPLIES,530034,BH,Miscellaneous Materials,402009
http://statistics.data.gov.uk/doc/local-authority/00CC,BarnsleyMBC,18/10/2023,5100344140,"2,071.87",CITY PLUMBING SUPPLIES,530034,BH,,
http://statistics.data.gov.uk/doc/local-authority/00CC,BarnsleyMBC,19/10/2023,5100344218,583.1,CITY PLUMBING SUPPLIES,530034,BH,,
http://statistics.data.gov.uk/doc/local-authority/00CC,BarnsleyMBC,19/10/2023,5100344221,972.39,CITY PLUMBING SUPPLIES,530034,BH,Basic pay - Agency Fees,104001
http://statistics.data.gov.uk/doc/local-authority/00CC,BarnsleyMBC,19/10/2023,5100344219,"2,361.96",CITY PLUMBING SUPPLIES,530034,BH,Main contractor,506011
http://statistics.data.gov.uk/doc/local-authority/00CC,BarnsleyMBC,19/10/2023,5100344217,"2,729.10",CITY PLUMBING SUPPLIES,530034,BH,,
http://statistics.data.gov.uk/doc/local-authority/00CC,BarnsleyMBC,20/10/2023,5100344509,833.98,CITY PLUMBING SUPPLIES,530034,BH,Direct - Building Items,403013
http://statistics.data.gov.uk/doc/local-authority/00CC,BarnsleyMBC,20/10/2023,5100344501,833.98,CITY PLUMBING SUPPLIES,530034,BH,Direct - Building Items,403013
http://statistics.data.gov.uk/doc/local-authority/00CC,BarnsleyMBC,20/10/2023,5100344499,833.98,CITY PLUMBING SUPPLIES,530034,BH,Direct - Building Items,403013
http://statistics.data.gov.uk/doc/local-authority/00CC,BarnsleyMBC,20/10/2023,5100344505,833.98,CITY PLUMBING SUPPLIES,530034,BH,Direct - Building Items,403013
http://statistics.data.gov.uk/doc/local-authority/00CC,BarnsleyMBC,20/10/2023,5100344497,833.98,CITY PLUMBING SUPPLIES,530034,BH,Direct - Building Items,403013
http://statistics.data.gov.uk/doc/local-authority/00CC,BarnsleyMBC,20/10/2023,5100344511,994.46,CITY PLUMBING SUPPLIES,530034,BH,Direct - Building Items,403013
http://statistics.data.gov.uk/doc/local-authority/00CC,BarnsleyMBC,20/10/2023,5100344500,"1,082.86",CITY PLUMBING SUPPLIES,530034,BH,Direct - Building Items,403013
http://statistics.data.gov.uk/doc/local-authority/00CC,BarnsleyMBC,20/10/2023,5100344506,"1,178.40",CITY PLUMBING SUPPLIES,530034,BH,,
http://statistics.data.gov.uk/doc/local-authority/00CC,BarnsleyMBC,20/10/2023,5100344498,"1,190.62",CITY PLUMBING SUPPLIES,530034,BH,Direct - Building Items,403013
http://statistics.data.gov.uk/doc/local-authority/00CC,BarnsleyMBC,20/10/2023,5100344508,"1,396.69",CITY PLUMBING SUPPLIES,530034,BH,Property Rents,211002
http://statistics.data.gov.uk/doc/local-authority/00CC,BarnsleyMBC,20/10/2023,5100344504,"1,626.69",CITY PLUMBING SUPPLIES,530034,BH,Direct - Building Items,403013
http://statistics.data.gov.uk/doc/local-authority/00CC,BarnsleyMBC,20/10/2023,5100344268,"1,740.10",CITY PLUMBING SUPPLIES,530034,BH,Consultants Fees,424007
http://statistics.data.gov.uk/doc/local-authority/00CC,BarnsleyMBC,20/10/2023,5100344507,"1,883.07",CITY PLUMBING SUPPLIES,530034,BH,Direct - Building Items,403013
http://statistics.data.gov.uk/doc/local-authority/00CC,BarnsleyMBC,20/10/2023,5100344464,"2,521.87",CITY PLUMBING SUPPLIES,530034,BH,Main contractor,506011
http://statistics.data.gov.uk/doc/local-authority/00CC,BarnsleyMBC,23/10/2023,5100344335,750.75,CITY PLUMBING SUPPLIES,530034,BH,,
http://statistics.data.gov.uk/doc/local-authority/00CC,BarnsleyMBC,23/10/2023,5100344420,"1,142.88",CITY PLUMBING SUPPLIES,530034,BH,Energy - Electricity,210001
http://statistics.data.gov.uk/doc/local-authority/00CC,BarnsleyMBC,23/10/2023,5100344334,"5,711.80",CITY PLUMBING SUPPLIES,530034,BH,Main contractor,506011
http://statistics.data.gov.uk/doc/local-authority/00CC,BarnsleyMBC,24/10/2023,5100344465,"1,083.39",CITY PLUMBING SUPPLIES,530034,BH,,
http://statistics.data.gov.uk/doc/local-authority/00CC,BarnsleyMBC,24/10/2023,5100344463,"1,083.39",CITY PLUMBING SUPPLIES,530034,BH,Direct - Building Items,403013
http://statistics.data.gov.uk/doc/local-authority/00CC,BarnsleyMBC,24/10/2023,5100344466,"1,136.93",CITY PLUMBING SUPPLIES,530034,BH,,
http://statistics.data.gov.uk/doc/local-authority/00CC,BarnsleyMBC,24/10/2023,5100344467,"1,644.71",CITY PLUMBING SUPPLIES,530034,BH,Direct - Building Items,403013
http://statistics.data.gov.uk/doc/local-authority/00CC,BarnsleyMBC,24/10/2023,5100344409,"3,905.28",CITY PLUMBING SUPPLIES,530034,BH,Energy - Electricity,210001
http://statistics.data.gov.uk/doc/local-authority/00CC,BarnsleyMBC,25/10/2023,5100344661,799.47,CITY PLUMBING SUPPLIES,530034,BH,Water Rates,213001
http://statistics.data.gov.uk/doc/local-authority/00CC,BarnsleyMBC,25/10/2023,5100344537,979.2,CITY PLUMBING SUPPLIES,530034,BH,Printing - External Provider,422001
http://statistics.data.gov.uk/doc/local-authority/00CC,BarnsleyMBC,25/10/2023,5100344670,"1,477.84",CITY PLUMBING SUPPLIES,530034,BH,Water Rates,213001
http://statistics.data.gov.uk/doc/local-authority/00CC,BarnsleyMBC,26/10/2023,5100344580,605.67,CITY PLUMBING SUPPLIES,530034,BH,Main contractor,506011
http://statistics.data.gov.uk/doc/local-authority/00CC,BarnsleyMBC,27/10/2023,5100344611,627.94,CITY PLUMBING SUPPLIES,530034,BH,Basic pay - Agency Fees,104001
http://statistics.data.gov.uk/doc/local-authority/00CC,BarnsleyMBC,27/10/2023,5100344614,957.85,CITY PLUMBING SUPPLIES,530034,BH,,
http://statistics.data.gov.uk/doc/local-authority/00CC,BarnsleyMBC,27/10/2023,5100344606,"1,063.44",CITY PLUMBING SUPPLIES,530034,BH,,
http://statistics.data.gov.uk/doc/local-authority/00CC,BarnsleyMBC,27/10/2023,5100344754,"1,081.75",CITY PLUMBING SUPPLIES,530034,BH,Basic pay - Agency Fees,104001
http://statistics.data.gov.uk/doc/local-authority/00CC,BarnsleyMBC,27/10/2023,5100344746,"1,085.83",CITY PLUMBING SUPPLIES,530034,BH,Direct - Building Items,403013
http://statistics.data.gov.uk/doc/local-authority/00CC,BarnsleyMBC,27/10/2023,5100344605,"1,319.79",CITY PLUMBING SUPPLIES,530034,BH,Direct - Building Items,403013
http://statistics.data.gov.uk/doc/local-authority/00CC,BarnsleyMBC,30/10/2023,5100344646,655.9,CITY PLUMBING SUPPLIES,530034,BH,Direct - Building Items,403013
http://statistics.data.gov.uk/doc/local-authority/00CC,BarnsleyMBC,30/10/2023,5100344748,"1,085.83",CITY PLUMBING SUPPLIES,530034,BH,,
http://statistics.data.gov.uk/doc/local-authority/00CC,BarnsleyMBC,30/10/2023,5100344648,"1,142.88",CITY PLUMBING SUPPLIES,530034,BH,,
http://statistics.data.gov.uk/doc/local-authority/00CC,BarnsleyMBC,30/10/2023,5100344650,"1,153.15",CITY PLUMBING SUPPLIES,530034,BH,,
http://statistics.data.gov.uk/doc/local-authority/00CC,BarnsleyMBC,30/10/2023,5100344749,"1,494.14",CITY PLUMBING SUPPLIES,530034,BH,,
http://statistics.data.gov.uk/doc/local-authority/00CC,BarnsleyMBC,30/10/2023,5100344678,"2,286.84",CITY PLUMBING SUPPLIES,530034,BH,Training Courses,112001
http://statistics.data.gov.uk/doc/local-authority/00CC,BarnsleyMBC,30/10/2023,5100344643,"2,314.28",CITY PLUMBING SUPPLIES,530034,BH,,
http://statistics.data.gov.uk/doc/local-authority/00CC,BarnsleyMBC,30/10/2023,5100344645,"2,471.91",CITY PLUMBING SUPPLIES,530034,BH,Direct - Building Items,403013
http://statistics.data.gov.uk/doc/local-authority/00CC,BarnsleyMBC,30/10/2023,5100344656,"3,230.95",CITY PLUMBING SUPPLIES,530034,BH,,
http://statistics.data.gov.uk/doc/local-authority/00CC,BarnsleyMBC,31/10/2023,5100344750,"1,085.83",CITY PLUMBING SUPPLIES,530034,BH,Fixtures and Fittings - Purchase,220001
http://statistics.data.gov.uk/doc/local-authority/00CC,BarnsleyMBC,31/10/2023,5100344751,"1,085.83",CITY PLUMBING SUPPLIES,530034,BH,Direct - Building Items,403013
http://statistics.data.gov.uk/doc/local-authority/00CC,BarnsleyMBC,18/10/2023,5100344299,"1,116.00",COMPETENT ASPHALT CO LTD,530383,BH,Main contractor,506011
http://statistics.data.gov.uk/doc/local-authority/00CC,BarnsleyMBC,18/10/2023,5100344304,"1,052.45",CT FLOORING,551316,BH,Plant hire,320002
http://statistics.data.gov.uk/doc/local-authority/00CC,BarnsleyMBC,18/10/2023,5100344302,"46,287.89",CT FLOORING,551316,BH,Main contractor,506011
http://statistics.data.gov.uk/doc/local-authority/00CC,BarnsleyMBC,31/10/2023,5100344868,"2,006.70",CT FLOORING,551316,BH,Main contractor,506011
http://statistics.data.gov.uk/doc/local-authority/00CC,BarnsleyMBC,31/10/2023,5100344866,"5,629.43",CT FLOORING,551316,BH,Main contractor,506011
http://statistics.data.gov.uk/doc/local-authority/00CC,BarnsleyMBC,11/10/2023,5100343844,"1,100.00",CYCLESCHEME LTD,524466,BH,,
http://statistics.data.gov.uk/doc/local-authority/00CC,BarnsleyMBC,19/10/2023,5100344346,"26,320.08",D & I WINDOWS SOLUTIONS LTD,552226,BH,Consultants Fees,424007
http://statistics.data.gov.uk/doc/local-authority/00CC,BarnsleyMBC,12/10/2023,1900027508,"2,500.00",DODWORTH CRIME & SAFETY SUB GROUP,519054,BH,Fixtures and Fittings - Purchase,220001
http://statistics.data.gov.uk/doc/local-authority/00CC,BarnsleyMBC,20/10/2023,5100344517,516.61,Dotdigital Group Plc,585228,BH,Fixtures and Fittings - Purchase,220001
http://statistics.data.gov.uk/doc/local-authority/00CC,BarnsleyMBC,05/10/2023,5100343531,"1,050.00",DOYLE SECURITY LTD,500865,BH,Basic pay - Agency Fees,104001
http://statistics.data.gov.uk/doc/local-authority/00CC,BarnsleyMBC,03/10/2023,5100343456,601.42,DULUX DECORATING CENTRE,505156,BH,,
http://statistics.data.gov.uk/doc/local-authority/00CC,BarnsleyMBC,13/10/2023,5100343949,798.64,DULUX DECORATING CENTRE,505156,BH,Direct - Building Items,403013
http://statistics.data.gov.uk/doc/local-authority/00CC,BarnsleyMBC,17/10/2023,5100344059,"1,079.95",DULUX DECORATING CENTRE,505156,BH,,
http://statistics.data.gov.uk/doc/local-authority/00CC,BarnsleyMBC,31/10/2023,5100344773,"5,184.00",ECS GAS TRAINING LIMITED,530526,BH,,
http://statistics.data.gov.uk/doc/local-authority/00CC,BarnsleyMBC,23/10/2023,5200084031,"-2,380.14",EDF ENERGY CUSTOMERS PLC,508401,BH,Energy - Electricity,210001
http://statistics.data.gov.uk/doc/local-authority/00CC,BarnsleyMBC,23/10/2023,5200084027,"-2,377.79",EDF ENERGY CUSTOMERS PLC,508401,BH,Energy - Electricity,210001
http://statistics.data.gov.uk/doc/local-authority/00CC,BarnsleyMBC,23/10/2023,5200084029,"-2,310.71",EDF ENERGY CUSTOMERS PLC,508401,BH,Energy - Electricity,210001
http://statistics.data.gov.uk/doc/local-authority/00CC,BarnsleyMBC,23/10/2023,5200084025,"-2,290.01",EDF ENERGY CUSTOMERS PLC,508401,BH,Energy - Electricity,210001
http://statistics.data.gov.uk/doc/local-authority/00CC,BarnsleyMBC,23/10/2023,5200084035,"-1,741.20",EDF ENERGY CUSTOMERS PLC,508401,BH,Energy - Electricity,210001
http://statistics.data.gov.uk/doc/local-authority/00CC,BarnsleyMBC,23/10/2023,5200084033,"-1,678.96",EDF ENERGY CUSTOMERS PLC,508401,BH,Direct - Tools & Parts,403019
http://statistics.data.gov.uk/doc/local-authority/00CC,BarnsleyMBC,23/10/2023,5200084039,"-1,561.14",EDF ENERGY CUSTOMERS PLC,508401,BH,Energy - Electricity,210001
http://statistics.data.gov.uk/doc/local-authority/00CC,BarnsleyMBC,23/10/2023,5200084037,"-1,511.75",EDF ENERGY CUSTOMERS PLC,508401,BH,Energy - Electricity,210001
http://statistics.data.gov.uk/doc/local-authority/00CC,BarnsleyMBC,23/10/2023,5200083980,503.44,EDF ENERGY CUSTOMERS PLC,508401,BH,Energy - Electricity,210001
http://statistics.data.gov.uk/doc/local-authority/00CC,BarnsleyMBC,23/10/2023,5200083982,506.76,EDF ENERGY CUSTOMERS PLC,508401,BH,Energy - Electricity,210001
http://statistics.data.gov.uk/doc/local-authority/00CC,BarnsleyMBC,23/10/2023,5200083911,580.41,EDF ENERGY CUSTOMERS PLC,508401,BH,Energy - Electricity,210001
http://statistics.data.gov.uk/doc/local-authority/00CC,BarnsleyMBC,23/10/2023,5200083941,608.55,EDF ENERGY CUSTOMERS PLC,508401,BH,Energy - Electricity,210001
http://statistics.data.gov.uk/doc/local-authority/00CC,BarnsleyMBC,23/10/2023,5200083987,616.38,EDF ENERGY CUSTOMERS PLC,508401,BH,,
http://statistics.data.gov.uk/doc/local-authority/00CC,BarnsleyMBC,23/10/2023,5200084093,668.79,EDF ENERGY CUSTOMERS PLC,508401,BH,,
http://statistics.data.gov.uk/doc/local-authority/00CC,BarnsleyMBC,23/10/2023,5200084062,782.95,EDF ENERGY CUSTOMERS PLC,508401,BH,Energy - Electricity,210001
http://statistics.data.gov.uk/doc/local-authority/00CC,BarnsleyMBC,23/10/2023,5200083966,913.64,EDF ENERGY CUSTOMERS PLC,508401,BH,Energy - Electricity,210001
http://statistics.data.gov.uk/doc/local-authority/00CC,BarnsleyMBC,23/10/2023,5200083974,968.75,EDF ENERGY CUSTOMERS PLC,508401,BH,,
http://statistics.data.gov.uk/doc/local-authority/00CC,BarnsleyMBC,23/10/2023,5200083968,"1,015.54",EDF ENERGY CUSTOMERS PLC,508401,BH,Energy - Electricity,210001
http://statistics.data.gov.uk/doc/local-authority/00CC,BarnsleyMBC,23/10/2023,5200083993,"1,015.77",EDF ENERGY CUSTOMERS PLC,508401,BH,Employee Welfare - Medical Care,115001
http://statistics.data.gov.uk/doc/local-authority/00CC,BarnsleyMBC,23/10/2023,5200083977,"1,178.86",EDF ENERGY CUSTOMERS PLC,508401,BH,Energy - Electricity,210001
http://statistics.data.gov.uk/doc/local-authority/00CC,BarnsleyMBC,23/10/2023,5200083978,"1,438.07",EDF ENERGY CUSTOMERS PLC,508401,BH,Direct - UPVC Parts,403015
http://statistics.data.gov.uk/doc/local-authority/00CC,BarnsleyMBC,23/10/2023,5200084038,"1,512.84",EDF ENERGY CUSTOMERS PLC,508401,BH,Energy - Electricity,210001
http://statistics.data.gov.uk/doc/local-authority/00CC,BarnsleyMBC,23/10/2023,5200083996,"1,534.93",EDF ENERGY CUSTOMERS PLC,508401,BH,Energy - Electricity,210001
http://statistics.data.gov.uk/doc/local-authority/00CC,BarnsleyMBC,23/10/2023,5200084040,"1,562.91",EDF ENERGY CUSTOMERS PLC,508401,BH,Energy - Electricity,210001
http://statistics.data.gov.uk/doc/local-authority/00CC,BarnsleyMBC,23/10/2023,5200084034,"1,688.94",EDF ENERGY CUSTOMERS PLC,508401,BH,Energy - Electricity,210001
http://statistics.data.gov.uk/doc/local-authority/00CC,BarnsleyMBC,23/10/2023,5200084036,"1,741.26",EDF ENERGY CUSTOMERS PLC,508401,BH,Energy - Electricity,210001
http://statistics.data.gov.uk/doc/local-authority/00CC,BarnsleyMBC,23/10/2023,5200083938,"1,871.66",EDF ENERGY CUSTOMERS PLC,508401,BH,Energy - Electricity,210001
http://statistics.data.gov.uk/doc/local-authority/00CC,BarnsleyMBC,23/10/2023,5200083931,"2,145.24",EDF ENERGY CUSTOMERS PLC,508401,BH,Repair & Maintenance Of Buildings,200003
http://statistics.data.gov.uk/doc/local-authority/00CC,BarnsleyMBC,23/10/2023,5200084032,"2,265.88",EDF ENERGY CUSTOMERS PLC,508401,BH,Energy - Electricity,210001
http://statistics.data.gov.uk/doc/local-authority/00CC,BarnsleyMBC,23/10/2023,5200084030,"2,296.31",EDF ENERGY CUSTOMERS PLC,508401,BH,,
http://statistics.data.gov.uk/doc/local-authority/00CC,BarnsleyMBC,23/10/2023,5200084026,"2,298.90",EDF ENERGY CUSTOMERS PLC,508401,BH,Energy - Electricity,210001
http://statistics.data.gov.uk/doc/local-authority/00CC,BarnsleyMBC,23/10/2023,5200083932,"2,326.21",EDF ENERGY CUSTOMERS PLC,508401,BH,Energy - Electricity,210001
http://statistics.data.gov.uk/doc/local-authority/00CC,BarnsleyMBC,23/10/2023,5200084028,"2,333.48",EDF ENERGY CUSTOMERS PLC,508401,BH,Energy - Electricity,210001
http://statistics.data.gov.uk/doc/local-authority/00CC,BarnsleyMBC,23/10/2023,5200083976,"5,011.25",EDF ENERGY CUSTOMERS PLC,508401,BH,Energy - Electricity,210001
http://statistics.data.gov.uk/doc/local-authority/00CC,BarnsleyMBC,23/10/2023,5200083955,"5,241.94",EDF ENERGY CUSTOMERS PLC,508401,BH,Energy - Electricity,210001
http://statistics.data.gov.uk/doc/local-authority/00CC,BarnsleyMBC,23/10/2023,5200083975,"15,106.97",EDF ENERGY CUSTOMERS PLC,508401,BH,Energy - Electricity,210001
http://statistics.data.gov.uk/doc/local-authority/00CC,BarnsleyMBC,24/10/2023,5200084227,"-2,307.93",EDF ENERGY CUSTOMERS PLC,508401,BH,Energy - Electricity,210001
http://statistics.data.gov.uk/doc/local-authority/00CC,BarnsleyMBC,24/10/2023,5200084289,"-1,632.65",EDF ENERGY CUSTOMERS PLC,508401,BH,Energy - Electricity,210001
http://statistics.data.gov.uk/doc/local-authority/00CC,BarnsleyMBC,24/10/2023,5200084225,"-1,607.22",EDF ENERGY CUSTOMERS PLC,508401,BH,Energy - Electricity,210001
http://statistics.data.gov.uk/doc/local-authority/00CC,BarnsleyMBC,24/10/2023,5200084229,"-1,510.66",EDF ENERGY CUSTOMERS PLC,508401,BH,Energy - Electricity,210001
http://statistics.data.gov.uk/doc/local-authority/00CC,BarnsleyMBC,24/10/2023,5200084316,585.39,EDF ENERGY CUSTOMERS PLC,508401,BH,Energy - Electricity,210001
http://statistics.data.gov.uk/doc/local-authority/00CC,BarnsleyMBC,24/10/2023,5200084293,588.84,EDF ENERGY CUSTOMERS PLC,508401,BH,Energy - Electricity,210001
http://statistics.data.gov.uk/doc/local-authority/00CC,BarnsleyMBC,24/10/2023,5200084181,621.75,EDF ENERGY CUSTOMERS PLC,508401,BH,External Recruitment Costs,113002
http://statistics.data.gov.uk/doc/local-authority/00CC,BarnsleyMBC,24/10/2023,5200084221,812.58,EDF ENERGY CUSTOMERS PLC,508401,BH,Energy - Electricity,210001
http://statistics.data.gov.uk/doc/local-authority/00CC,BarnsleyMBC,24/10/2023,5200084150,919.05,EDF ENERGY CUSTOMERS PLC,508401,BH,Energy - Electricity,210001
http://statistics.data.gov.uk/doc/local-authority/00CC,BarnsleyMBC,24/10/2023,5200084169,932.95,EDF ENERGY CUSTOMERS PLC,508401,BH,Direct - Building Items,403013
http://statistics.data.gov.uk/doc/local-authority/00CC,BarnsleyMBC,24/10/2023,5200084142,"1,011.40",EDF ENERGY CUSTOMERS PLC,508401,BH,Energy - Electricity,210001
http://statistics.data.gov.uk/doc/local-authority/00CC,BarnsleyMBC,24/10/2023,5200084156,"1,022.36",EDF ENERGY CUSTOMERS PLC,508401,BH,Energy - Electricity,210001
http://statistics.data.gov.uk/doc/local-authority/00CC,BarnsleyMBC,24/10/2023,5200084285,"1,273.15",EDF ENERGY CUSTOMERS PLC,508401,BH,Energy - Electricity,210001
http://statistics.data.gov.uk/doc/local-authority/00CC,BarnsleyMBC,24/10/2023,5200084159,"1,404.84",EDF ENERGY CUSTOMERS PLC,508401,BH,Energy - Electricity,210001
http://statistics.data.gov.uk/doc/local-authority/00CC,BarnsleyMBC,24/10/2023,5200084230,"1,511.75",EDF ENERGY CUSTOMERS PLC,508401,BH,Energy - Electricity,210001
http://statistics.data.gov.uk/doc/local-authority/00CC,BarnsleyMBC,24/10/2023,5200084286,"1,561.14",EDF ENERGY CUSTOMERS PLC,508401,BH,Energy - Electricity,210001
http://statistics.data.gov.uk/doc/local-authority/00CC,BarnsleyMBC,24/10/2023,5200084276,"1,563.03",EDF ENERGY CUSTOMERS PLC,508401,BH,Energy - Electricity,210001
http://statistics.data.gov.uk/doc/local-authority/00CC,BarnsleyMBC,24/10/2023,5200084226,"1,610.04",EDF ENERGY CUSTOMERS PLC,508401,BH,Direct - Building Items,403013
http://statistics.data.gov.uk/doc/local-authority/00CC,BarnsleyMBC,24/10/2023,5200084279,"1,632.65",EDF ENERGY CUSTOMERS PLC,508401,BH,Energy - Electricity,210001
http://statistics.data.gov.uk/doc/local-authority/00CC,BarnsleyMBC,24/10/2023,5200084274,"1,649.26",EDF ENERGY CUSTOMERS PLC,508401,BH,Energy - Electricity,210001
http://statistics.data.gov.uk/doc/local-authority/00CC,BarnsleyMBC,24/10/2023,5200084290,"2,261.19",EDF ENERGY CUSTOMERS PLC,508401,BH,Computer Hardware - Purchase,426006
http://statistics.data.gov.uk/doc/local-authority/00CC,BarnsleyMBC,24/10/2023,5200084228,"2,310.71",EDF ENERGY CUSTOMERS PLC,508401,BH,Energy - Electricity,210001
http://statistics.data.gov.uk/doc/local-authority/00CC,BarnsleyMBC,24/10/2023,5200084281,"2,374.14",EDF ENERGY CUSTOMERS PLC,508401,BH,Energy - Electricity,210001
http://statistics.data.gov.uk/doc/local-authority/00CC,BarnsleyMBC,24/10/2023,5200084280,"2,380.14",EDF ENERGY CUSTOMERS PLC,508401,BH,Energy - Electricity,210001
http://statistics.data.gov.uk/doc/local-authority/00CC,BarnsleyMBC,24/10/2023,5200084282,"5,004.51",EDF ENERGY CUSTOMERS PLC,508401,BH,Energy - Electricity,210001
http://statistics.data.gov.uk/doc/local-authority/00CC,BarnsleyMBC,24/10/2023,5200084284,"5,566.91",EDF ENERGY CUSTOMERS PLC,508401,BH,Energy - Electricity,210001
http://statistics.data.gov.uk/doc/local-authority/00CC,BarnsleyMBC,24/10/2023,5200084283,"14,767.41",EDF ENERGY CUSTOMERS PLC,508401,BH,Energy - Electricity,210001
http://statistics.data.gov.uk/doc/local-authority/00CC,BarnsleyMBC,02/10/2023,5100343423,"10,080.00",EDMUNDSON ELECTRICAL LTD,512393,BH,G/L Account Text,G/L Acc No
http://statistics.data.gov.uk/doc/local-authority/00CC,BarnsleyMBC,03/10/2023,5100343482,"3,351.36",EDMUNDSON ELECTRICAL LTD,512393,BH,Employee Welfare - Medical Care,115001
http://statistics.data.gov.uk/doc/local-authority/00CC,BarnsleyMBC,04/10/2023,5100343486,"2,070.00",EDMUNDSON ELECTRICAL LTD,512393,BH,,
http://statistics.data.gov.uk/doc/local-authority/00CC,BarnsleyMBC,04/10/2023,5100343660,"2,678.82",EDMUNDSON ELECTRICAL LTD,512393,BH,Fixtures and Fittings - Purchase,220001
http://statistics.data.gov.uk/doc/local-authority/00CC,BarnsleyMBC,05/10/2023,5100343740,"1,368.00",EDMUNDSON ELECTRICAL LTD,512393,BH,Training Courses,112001
http://statistics.data.gov.uk/doc/local-authority/00CC,BarnsleyMBC,06/10/2023,5100343737,"2,646.00",EDMUNDSON ELECTRICAL LTD,512393,BH,Main contractor,506011
http://statistics.data.gov.uk/doc/local-authority/00CC,BarnsleyMBC,06/10/2023,5100343776,"3,469.86",EDMUNDSON ELECTRICAL LTD,512393,BH,Main contractor,506011
http://statistics.data.gov.uk/doc/local-authority/00CC,BarnsleyMBC,09/10/2023,5100343738,"1,012.92",EDMUNDSON ELECTRICAL LTD,512393,BH,Miscellaneous Services,424001
http://statistics.data.gov.uk/doc/local-authority/00CC,BarnsleyMBC,12/10/2023,5100343888,"2,160.00",EDMUNDSON ELECTRICAL LTD,512393,BH,Direct - Building Items,403013
http://statistics.data.gov.uk/doc/local-authority/00CC,BarnsleyMBC,13/10/2023,5100343939,"3,727.20",EDMUNDSON ELECTRICAL LTD,512393,BH,Direct - Building Items,403013
http://statistics.data.gov.uk/doc/local-authority/00CC,BarnsleyMBC,24/10/2023,5100344365,"2,516.40",EDMUNDSON ELECTRICAL LTD,512393,BH,Energy - Electricity,210001
http://statistics.data.gov.uk/doc/local-authority/00CC,BarnsleyMBC,25/10/2023,5100344433,"11,824.80",EDMUNDSON ELECTRICAL LTD,512393,BH,Water Rates,213001
http://statistics.data.gov.uk/doc/local-authority/00CC,BarnsleyMBC,27/10/2023,5100344636,"2,978.40",EDMUNDSON ELECTRICAL LTD,512393,BH,ICT Services and Support,426014
http://statistics.data.gov.uk/doc/local-authority/00CC,BarnsleyMBC,19/10/2023,5100344374,"9,120.00",Elite Render Specialists Ltd,552686,BH,Main contractor,506011
http://statistics.data.gov.uk/doc/local-authority/00CC,BarnsleyMBC,18/10/2023,5100344262,"17,019.66",EN:ABLE FUTURES CIC,539812,BH,Printing - External Provider,422001
http://statistics.data.gov.uk/doc/local-authority/00CC,BarnsleyMBC,18/10/2023,5100344309,"42,391.61",ENERVEO LIMITED,552641,BH,Main contractor,506011
http://statistics.data.gov.uk/doc/local-authority/00CC,BarnsleyMBC,25/10/2023,5100344518,"40,241.70",ENERVEO LIMITED,552641,BH,Main contractor,506011
http://statistics.data.gov.uk/doc/local-authority/00CC,BarnsleyMBC,17/10/2023,5100344214,775,English Rose Tea Rooms,540405,BH,Direct - Building Items,403013
http://statistics.data.gov.uk/doc/local-authority/00CC,BarnsleyMBC,20/10/2023,5100344512,886.26,ENVIROVENT LTD,550035,BH,Direct - Tools & Parts,403019
http://statistics.data.gov.uk/doc/local-authority/00CC,BarnsleyMBC,23/10/2023,5100344557,"1,520.88",ENVIROVENT LTD,550035,BH,Energy - Electricity,210001
http://statistics.data.gov.uk/doc/local-authority/00CC,BarnsleyMBC,31/10/2023,5100344848,"1,695.12",Flood Divert Ltd,552540,BH,Main contractor,506011
http://statistics.data.gov.uk/doc/local-authority/00CC,BarnsleyMBC,11/10/2023,5100343946,500,Friends Families and Travellers,542108,BH,Main contractor,506011
http://statistics.data.gov.uk/doc/local-authority/00CC,BarnsleyMBC,25/10/2023,5100344642,795,GED LAING - PERSONAL SAFETY TRAININ,534814,BH,Transport Leasing - Long term agreements,320001
http://statistics.data.gov.uk/doc/local-authority/00CC,BarnsleyMBC,04/10/2023,5100343633,"4,260.00",Gravitas Recruitment Group Limited,541757,BH,,
http://statistics.data.gov.uk/doc/local-authority/00CC,BarnsleyMBC,05/10/2023,5100343734,"4,260.00",Gravitas Recruitment Group Limited,541757,BH,,
http://statistics.data.gov.uk/doc/local-authority/00CC,BarnsleyMBC,09/10/2023,5100343634,"3,408.00",Gravitas Recruitment Group Limited,541757,BH,Fixtures and Fittings - Purchase,220001
http://statistics.data.gov.uk/doc/local-authority/00CC,BarnsleyMBC,16/10/2023,5100344120,"1,278.00",Gravitas Recruitment Group Limited,541757,BH,Direct - Building Items,403013
http://statistics.data.gov.uk/doc/local-authority/00CC,BarnsleyMBC,24/10/2023,5100344327,"3,408.00",Gravitas Recruitment Group Limited,541757,BH,Energy - Electricity,210001
http://statistics.data.gov.uk/doc/local-authority/00CC,BarnsleyMBC,04/10/2023,5100343490,660,Handletrade ltd,533871,BH,,
http://statistics.data.gov.uk/doc/local-authority/00CC,BarnsleyMBC,04/10/2023,5100343489,708,Handletrade ltd,533871,BH,,
http://statistics.data.gov.uk/doc/local-authority/00CC,BarnsleyMBC,04/10/2023,5100343488,"1,132.50",Handletrade ltd,533871,BH,,
http://statistics.data.gov.uk/doc/local-authority/00CC,BarnsleyMBC,17/10/2023,5100344030,"1,120.34",Handletrade ltd,533871,BH,,
http://statistics.data.gov.uk/doc/local-authority/00CC,BarnsleyMBC,17/10/2023,5100344255,"4,951.44",Handletrade ltd,533871,BH,Direct - Building Items,403013
http://statistics.data.gov.uk/doc/local-authority/00CC,BarnsleyMBC,19/10/2023,5100344413,615.42,Handletrade ltd,533871,BH,Basic pay - Agency Fees,104001
http://statistics.data.gov.uk/doc/local-authority/00CC,BarnsleyMBC,30/10/2023,5100344633,660,Handletrade ltd,533871,BH,,
http://statistics.data.gov.uk/doc/local-authority/00CC,BarnsleyMBC,09/10/2023,5100343881,"10,800.00",HAVAS PEOPLE LIMITED,518176,BH,,
http://statistics.data.gov.uk/doc/local-authority/00CC,BarnsleyMBC,26/10/2023,5100344690,"2,130.00",Heart of Yorkshire Education Group,541718,BH,Water Rates,213001
http://statistics.data.gov.uk/doc/local-authority/00CC,BarnsleyMBC,18/10/2023,5100344274,"2,432.89",HEC Contracting Limited,532267,BH,Training Courses,112001
http://statistics.data.gov.uk/doc/local-authority/00CC,BarnsleyMBC,25/10/2023,5100344616,"95,217.25",HEC Contracting Limited,532267,BH,Direct - Building Items,403013
http://statistics.data.gov.uk/doc/local-authority/00CC,BarnsleyMBC,27/10/2023,5100344727,"6,098.09",HEC Contracting Limited,532267,BH,Basic pay - Agency Fees,104001
http://statistics.data.gov.uk/doc/local-authority/00CC,BarnsleyMBC,25/10/2023,5100344664,"3,780.00",HILTI (GT BRITAIN) LTD,509294,BH,Vehicle Hire,300006
http://statistics.data.gov.uk/doc/local-authority/00CC,BarnsleyMBC,17/10/2023,5100344226,"9,620.54",HOME UTILITY GROUP LTD,534259,BH,Catering - External Provider,410002
http://statistics.data.gov.uk/doc/local-authority/00CC,BarnsleyMBC,09/10/2023,5100343872,"1,033.82",HOWDEN JOINERY LTD,501434,BH,,
http://statistics.data.gov.uk/doc/local-authority/00CC,BarnsleyMBC,09/10/2023,5100343873,"1,196.81",HOWDEN JOINERY LTD,501434,BH,,
http://statistics.data.gov.uk/doc/local-authority/00CC,BarnsleyMBC,09/10/2023,5100343876,"1,305.53",HOWDEN JOINERY LTD,501434,BH,Fixtures and Fittings - Purchase,220001
http://statistics.data.gov.uk/doc/local-authority/00CC,BarnsleyMBC,09/10/2023,5100343871,"1,326.24",HOWDEN JOINERY LTD,501434,BH,Fixtures and Fittings - Purchase,220001
http://statistics.data.gov.uk/doc/local-authority/00CC,BarnsleyMBC,09/10/2023,5100343880,"1,560.79",HOWDEN JOINERY LTD,501434,BH,Fixtures and Fittings - Purchase,220001
http://statistics.data.gov.uk/doc/local-authority/00CC,BarnsleyMBC,09/10/2023,5100343874,"1,605.80",HOWDEN JOINERY LTD,501434,BH,Direct - UPVC Parts,403015
http://statistics.data.gov.uk/doc/local-authority/00CC,BarnsleyMBC,11/10/2023,5100344000,501.04,HOWDEN JOINERY LTD,501434,BH,Fixtures and Fittings - Purchase,220001
http://statistics.data.gov.uk/doc/local-authority/00CC,BarnsleyMBC,11/10/2023,5100343999,"1,301.36",HOWDEN JOINERY LTD,501434,BH,Main contractor,506011
http://statistics.data.gov.uk/doc/local-authority/00CC,BarnsleyMBC,11/10/2023,5100344001,"1,944.65",HOWDEN JOINERY LTD,501434,BH,Fixtures and Fittings - Purchase,220001
http://statistics.data.gov.uk/doc/local-authority/00CC,BarnsleyMBC,12/10/2023,5100344033,"1,792.21",HOWDEN JOINERY LTD,501434,BH,Training Courses,112001
http://statistics.data.gov.uk/doc/local-authority/00CC,BarnsleyMBC,27/10/2023,5100344762,"1,087.85",HOWDEN JOINERY LTD,501434,BH,Basic pay - Agency Fees,104001
http://statistics.data.gov.uk/doc/local-authority/00CC,BarnsleyMBC,27/10/2023,5100344763,"1,436.93",HOWDEN JOINERY LTD,501434,BH,Fixtures and Fittings - Purchase,220001
http://statistics.data.gov.uk/doc/local-authority/00CC,BarnsleyMBC,27/10/2023,5100344764,"1,889.63",HOWDEN JOINERY LTD,501434,BH,Basic pay - Agency Fees,104001
http://statistics.data.gov.uk/doc/local-authority/00CC,BarnsleyMBC,30/10/2023,5100344674,814.67,HOWDEN JOINERY LTD,501434,BH,Direct - Building Items,403013
http://statistics.data.gov.uk/doc/local-authority/00CC,BarnsleyMBC,31/10/2023,5100344820,919.26,HOWDEN JOINERY LTD,501434,BH,Fixtures and Fittings - Purchase,220001
http://statistics.data.gov.uk/doc/local-authority/00CC,BarnsleyMBC,31/10/2023,5100344824,"1,081.52",HOWDEN JOINERY LTD,501434,BH,Fixtures and Fittings - Purchase,220001
http://statistics.data.gov.uk/doc/local-authority/00CC,BarnsleyMBC,31/10/2023,5100344814,"1,105.72",HOWDEN JOINERY LTD,501434,BH,Main contractor,506011
http://statistics.data.gov.uk/doc/local-authority/00CC,BarnsleyMBC,31/10/2023,5100344817,"1,140.11",HOWDEN JOINERY LTD,501434,BH,Fixtures and Fittings - Purchase,220001
http://statistics.data.gov.uk/doc/local-authority/00CC,BarnsleyMBC,31/10/2023,5100344823,"1,275.01",HOWDEN JOINERY LTD,501434,BH,Fixtures and Fittings - Purchase,220001
http://statistics.data.gov.uk/doc/local-authority/00CC,BarnsleyMBC,31/10/2023,5100344821,"1,323.05",HOWDEN JOINERY LTD,501434,BH,Fixtures and Fittings - Purchase,220001
http://statistics.data.gov.uk/doc/local-authority/00CC,BarnsleyMBC,31/10/2023,5100344811,"1,364.27",HOWDEN JOINERY LTD,501434,BH,Main contractor,506011
http://statistics.data.gov.uk/doc/local-authority/00CC,BarnsleyMBC,31/10/2023,5100344816,"1,437.70",HOWDEN JOINERY LTD,501434,BH,Fixtures and Fittings - Purchase,220001
http://statistics.data.gov.uk/doc/local-authority/00CC,BarnsleyMBC,31/10/2023,5100344828,"1,514.98",HOWDEN JOINERY LTD,501434,BH,Fixtures and Fittings - Purchase,220001
http://statistics.data.gov.uk/doc/local-authority/00CC,BarnsleyMBC,31/10/2023,5100344833,"1,546.69",HOWDEN JOINERY LTD,501434,BH,Fixtures and Fittings - Purchase,220001
http://statistics.data.gov.uk/doc/local-authority/00CC,BarnsleyMBC,31/10/2023,5100344812,"1,572.07",HOWDEN JOINERY LTD,501434,BH,Fixtures and Fittings - Purchase,220001
http://statistics.data.gov.uk/doc/local-authority/00CC,BarnsleyMBC,31/10/2023,5100344826,"1,624.50",HOWDEN JOINERY LTD,501434,BH,Fixtures and Fittings - Purchase,220001
http://statistics.data.gov.uk/doc/local-authority/00CC,BarnsleyMBC,31/10/2023,5100344830,"1,644.35",HOWDEN JOINERY LTD,501434,BH,Fixtures and Fittings - Purchase,220001
http://statistics.data.gov.uk/doc/local-authority/00CC,BarnsleyMBC,31/10/2023,5100344822,"1,672.63",HOWDEN JOINERY LTD,501434,BH,Fixtures and Fittings - Purchase,220001
http://statistics.data.gov.uk/doc/local-authority/00CC,BarnsleyMBC,31/10/2023,5100344827,"1,675.88",HOWDEN JOINERY LTD,501434,BH,Fixtures and Fittings - Purchase,220001
http://statistics.data.gov.uk/doc/local-authority/00CC,BarnsleyMBC,31/10/2023,5100344810,"1,676.54",HOWDEN JOINERY LTD,501434,BH,Fixtures and Fittings - Purchase,220001
http://statistics.data.gov.uk/doc/local-authority/00CC,BarnsleyMBC,31/10/2023,5100344813,"1,680.70",HOWDEN JOINERY LTD,501434,BH,Fixtures and Fittings - Purchase,220001
http://statistics.data.gov.uk/doc/local-authority/00CC,BarnsleyMBC,31/10/2023,5100344819,"1,703.34",HOWDEN JOINERY LTD,501434,BH,Fixtures and Fittings - Purchase,220001
http://statistics.data.gov.uk/doc/local-authority/00CC,BarnsleyMBC,31/10/2023,5100344829,"1,816.08",HOWDEN JOINERY LTD,501434,BH,Fixtures and Fittings - Purchase,220001
http://statistics.data.gov.uk/doc/local-authority/00CC,BarnsleyMBC,31/10/2023,5100344831,"1,899.42",HOWDEN JOINERY LTD,501434,BH,Fixtures and Fittings - Purchase,220001
http://statistics.data.gov.uk/doc/local-authority/00CC,BarnsleyMBC,12/10/2023,5100343882,"7,260.00",HQN LTD,510400,BH,Main contractor,506011
http://statistics.data.gov.uk/doc/local-authority/00CC,BarnsleyMBC,23/10/2023,5100344326,580.75,INSIGHT DIRECT (UK) LTD,510460,BH,Energy - Electricity,210001
http://statistics.data.gov.uk/doc/local-authority/00CC,BarnsleyMBC,02/10/2023,5100343425,"2,163.00",Interior Panel Systems Ltd,534029,BH,Expenses - Compensation Payments,460010
http://statistics.data.gov.uk/doc/local-authority/00CC,BarnsleyMBC,05/10/2023,5100343749,632.88,Interior Panel Systems Ltd,534029,BH,Training Courses,112001
http://statistics.data.gov.uk/doc/local-authority/00CC,BarnsleyMBC,05/10/2023,5100343750,"2,163.00",Interior Panel Systems Ltd,534029,BH,,
http://statistics.data.gov.uk/doc/local-authority/00CC,BarnsleyMBC,16/10/2023,5100343944,949.2,Interior Panel Systems Ltd,534029,BH,,
http://statistics.data.gov.uk/doc/local-authority/00CC,BarnsleyMBC,16/10/2023,5100343943,"2,163.00",Interior Panel Systems Ltd,534029,BH,Postage,426005
http://statistics.data.gov.uk/doc/local-authority/00CC,BarnsleyMBC,02/10/2023,5100343451,662.4,JEWSON LTD,501339,BH,Main contractor,506011
http://statistics.data.gov.uk/doc/local-authority/00CC,BarnsleyMBC,03/10/2023,5100343467,"1,875.96",JEWSON LTD,501339,BH,Direct - Tools & Parts,403019
http://statistics.data.gov.uk/doc/local-authority/00CC,BarnsleyMBC,04/10/2023,5100343502,513.9,JEWSON LTD,501339,BH,External Recruitment Costs,113002
http://statistics.data.gov.uk/doc/local-authority/00CC,BarnsleyMBC,04/10/2023,5100343643,"1,156.42",JEWSON LTD,501339,BH,Direct - Building Items,403013
http://statistics.data.gov.uk/doc/local-authority/00CC,BarnsleyMBC,04/10/2023,5100343499,"1,360.71",JEWSON LTD,501339,BH,Vehicle Hire,300006
http://statistics.data.gov.uk/doc/local-authority/00CC,BarnsleyMBC,04/10/2023,5100343508,"2,904.39",JEWSON LTD,501339,BH,Miscellaneous Services,424001
http://statistics.data.gov.uk/doc/local-authority/00CC,BarnsleyMBC,09/10/2023,5100343715,764.4,JEWSON LTD,501339,BH,Direct - Building Items,403013
http://statistics.data.gov.uk/doc/local-authority/00CC,BarnsleyMBC,09/10/2023,5100343706,779.84,JEWSON LTD,501339,BH,,
http://statistics.data.gov.uk/doc/local-authority/00CC,BarnsleyMBC,09/10/2023,5100343717,"1,321.08",JEWSON LTD,501339,BH,Fixtures and Fittings - Purchase,220001
http://statistics.data.gov.uk/doc/local-authority/00CC,BarnsleyMBC,09/10/2023,5100343705,"1,632.60",JEWSON LTD,501339,BH,,
http://statistics.data.gov.uk/doc/local-authority/00CC,BarnsleyMBC,10/10/2023,5100343935,"2,977.20",JEWSON LTD,501339,BH,,
http://statistics.data.gov.uk/doc/local-authority/00CC,BarnsleyMBC,11/10/2023,5100343989,527.62,JEWSON LTD,501339,BH,Direct - Building Items,403013
http://statistics.data.gov.uk/doc/local-authority/00CC,BarnsleyMBC,11/10/2023,5100343896,534.91,JEWSON LTD,501339,BH,,
http://statistics.data.gov.uk/doc/local-authority/00CC,BarnsleyMBC,11/10/2023,5100343982,732.46,JEWSON LTD,501339,BH,,
http://statistics.data.gov.uk/doc/local-authority/00CC,BarnsleyMBC,11/10/2023,5100343985,900.3,JEWSON LTD,501339,BH,Training Courses,112001
http://statistics.data.gov.uk/doc/local-authority/00CC,BarnsleyMBC,11/10/2023,5100343984,"1,664.42",JEWSON LTD,501339,BH,Community Services,505045
http://statistics.data.gov.uk/doc/local-authority/00CC,BarnsleyMBC,11/10/2023,5100343981,"1,665.28",JEWSON LTD,501339,BH,Fixtures and Fittings - Purchase,220001
http://statistics.data.gov.uk/doc/local-authority/00CC,BarnsleyMBC,11/10/2023,5100343987,"1,666.69",JEWSON LTD,501339,BH,,
http://statistics.data.gov.uk/doc/local-authority/00CC,BarnsleyMBC,11/10/2023,5100343995,"2,324.54",JEWSON LTD,501339,BH,,
http://statistics.data.gov.uk/doc/local-authority/00CC,BarnsleyMBC,11/10/2023,5100343983,"7,941.18",JEWSON LTD,501339,BH,Direct - UPVC Parts,403015
http://statistics.data.gov.uk/doc/local-authority/00CC,BarnsleyMBC,12/10/2023,5100343901,"1,266.72",JEWSON LTD,501339,BH,Basic pay - Agency Fees,104001
http://statistics.data.gov.uk/doc/local-authority/00CC,BarnsleyMBC,13/10/2023,5100344055,-500.87,JEWSON LTD,501339,BH,Direct - Building Items,403013
http://statistics.data.gov.uk/doc/local-authority/00CC,BarnsleyMBC,13/10/2023,5100344056,500.87,JEWSON LTD,501339,BH,Main contractor,506011
http://statistics.data.gov.uk/doc/local-authority/00CC,BarnsleyMBC,13/10/2023,5100344108,542.71,JEWSON LTD,501339,BH,Main contractor,506011
http://statistics.data.gov.uk/doc/local-authority/00CC,BarnsleyMBC,13/10/2023,5100344060,549.49,JEWSON LTD,501339,BH,,
http://statistics.data.gov.uk/doc/local-authority/00CC,BarnsleyMBC,13/10/2023,5100343964,605.81,JEWSON LTD,501339,BH,Main contractor,506011
http://statistics.data.gov.uk/doc/local-authority/00CC,BarnsleyMBC,13/10/2023,5100343968,658.08,JEWSON LTD,501339,BH,,
http://statistics.data.gov.uk/doc/local-authority/00CC,BarnsleyMBC,13/10/2023,5100343967,"1,447.51",JEWSON LTD,501339,BH,Direct - Tools & Parts,403019
http://statistics.data.gov.uk/doc/local-authority/00CC,BarnsleyMBC,16/10/2023,5100344024,590.83,JEWSON LTD,501339,BH,Fixtures and Fittings - Purchase,220001
http://statistics.data.gov.uk/doc/local-authority/00CC,BarnsleyMBC,16/10/2023,5100344022,"1,147.01",JEWSON LTD,501339,BH,,
http://statistics.data.gov.uk/doc/local-authority/00CC,BarnsleyMBC,16/10/2023,5100344178,"1,568.22",JEWSON LTD,501339,BH,,
http://statistics.data.gov.uk/doc/local-authority/00CC,BarnsleyMBC,17/10/2023,5100344245,864,JEWSON LTD,501339,BH,Direct - Building Items,403013
http://statistics.data.gov.uk/doc/local-authority/00CC,BarnsleyMBC,17/10/2023,5100344242,"1,988.39",JEWSON LTD,501339,BH,,
http://statistics.data.gov.uk/doc/local-authority/00CC,BarnsleyMBC,17/10/2023,5100344207,"2,115.07",JEWSON LTD,501339,BH,,
http://statistics.data.gov.uk/doc/local-authority/00CC,BarnsleyMBC,17/10/2023,5100344241,"6,236.06",JEWSON LTD,501339,BH,Main contractor,506011
http://statistics.data.gov.uk/doc/local-authority/00CC,BarnsleyMBC,18/10/2023,5100344123,"1,184.24",JEWSON LTD,501339,BH,Main contractor,506011
http://statistics.data.gov.uk/doc/local-authority/00CC,BarnsleyMBC,18/10/2023,5100344127,"1,266.27",JEWSON LTD,501339,BH,,
http://statistics.data.gov.uk/doc/local-authority/00CC,BarnsleyMBC,18/10/2023,5100344132,"1,466.17",JEWSON LTD,501339,BH,,
http://statistics.data.gov.uk/doc/local-authority/00CC,BarnsleyMBC,19/10/2023,5100344392,636.86,JEWSON LTD,501339,BH,Basic pay - Agency Fees,104001
http://statistics.data.gov.uk/doc/local-authority/00CC,BarnsleyMBC,19/10/2023,5100344233,966,JEWSON LTD,501339,BH,,
http://statistics.data.gov.uk/doc/local-authority/00CC,BarnsleyMBC,19/10/2023,5100344362,"5,401.30",JEWSON LTD,501339,BH,Basic pay - Agency Fees,104001
http://statistics.data.gov.uk/doc/local-authority/00CC,BarnsleyMBC,20/10/2023,5100344311,563.47,JEWSON LTD,501339,BH,Direct - Building Items,403013
http://statistics.data.gov.uk/doc/local-authority/00CC,BarnsleyMBC,20/10/2023,5100344526,665.28,JEWSON LTD,501339,BH,Miscellaneous Insurances,460016
http://statistics.data.gov.uk/doc/local-authority/00CC,BarnsleyMBC,23/10/2023,5100344443,515.42,JEWSON LTD,501339,BH,,
http://statistics.data.gov.uk/doc/local-authority/00CC,BarnsleyMBC,23/10/2023,5100344437,527.11,JEWSON LTD,501339,BH,,
http://statistics.data.gov.uk/doc/local-authority/00CC,BarnsleyMBC,23/10/2023,5100344441,"1,092.60",JEWSON LTD,501339,BH,Energy - Electricity,210001
http://statistics.data.gov.uk/doc/local-authority/00CC,BarnsleyMBC,23/10/2023,5100344440,"1,335.38",JEWSON LTD,501339,BH,,
http://statistics.data.gov.uk/doc/local-authority/00CC,BarnsleyMBC,23/10/2023,5100344361,"1,875.96",JEWSON LTD,501339,BH,,
http://statistics.data.gov.uk/doc/local-authority/00CC,BarnsleyMBC,23/10/2023,5100344358,"2,180.46",JEWSON LTD,501339,BH,Direct - Building Items,403013
http://statistics.data.gov.uk/doc/local-authority/00CC,BarnsleyMBC,23/10/2023,5100344395,"3,207.89",JEWSON LTD,501339,BH,Collection & Disposal Of Waste,424013
http://statistics.data.gov.uk/doc/local-authority/00CC,BarnsleyMBC,25/10/2023,5100344542,537.46,JEWSON LTD,501339,BH,,
http://statistics.data.gov.uk/doc/local-authority/00CC,BarnsleyMBC,27/10/2023,5100344759,939.07,JEWSON LTD,501339,BH,Basic pay - Agency Fees,104001
http://statistics.data.gov.uk/doc/local-authority/00CC,BarnsleyMBC,30/10/2023,5100344689,543.93,JEWSON LTD,501339,BH,Fixtures and Fittings - Purchase,220001
http://statistics.data.gov.uk/doc/local-authority/00CC,BarnsleyMBC,30/10/2023,5100344686,688.37,JEWSON LTD,501339,BH,,
http://statistics.data.gov.uk/doc/local-authority/00CC,BarnsleyMBC,30/10/2023,5100344685,809.44,JEWSON LTD,501339,BH,Non Stat Rechargeable Pensions,114005
http://statistics.data.gov.uk/doc/local-authority/00CC,BarnsleyMBC,31/10/2023,5100344876,"1,429.44",JEWSON LTD,501339,BH,,
http://statistics.data.gov.uk/doc/local-authority/00CC,BarnsleyMBC,31/10/2023,5100344875,"1,614.09",JEWSON LTD,501339,BH,,
http://statistics.data.gov.uk/doc/local-authority/00CC,BarnsleyMBC,06/10/2023,5100343568,624.98,Kingfisher UPVC Doors and Windows L,535349,BH,,
http://statistics.data.gov.uk/doc/local-authority/00CC,BarnsleyMBC,06/10/2023,5100343569,664.63,Kingfisher UPVC Doors and Windows L,535349,BH,Direct - UPVC Parts,403015
http://statistics.data.gov.uk/doc/local-authority/00CC,BarnsleyMBC,09/10/2023,5100343863,655.93,Kingfisher UPVC Doors and Windows L,535349,BH,Direct - UPVC Parts,403015
http://statistics.data.gov.uk/doc/local-authority/00CC,BarnsleyMBC,09/10/2023,5100343866,661.25,Kingfisher UPVC Doors and Windows L,535349,BH,Direct - UPVC Parts,403015
http://statistics.data.gov.uk/doc/local-authority/00CC,BarnsleyMBC,09/10/2023,5100343868,678.54,Kingfisher UPVC Doors and Windows L,535349,BH,Direct - UPVC Parts,403015
http://statistics.data.gov.uk/doc/local-authority/00CC,BarnsleyMBC,09/10/2023,5100343865,678.61,Kingfisher UPVC Doors and Windows L,535349,BH,Direct - UPVC Parts,403015
http://statistics.data.gov.uk/doc/local-authority/00CC,BarnsleyMBC,09/10/2023,5100343860,705.91,Kingfisher UPVC Doors and Windows L,535349,BH,,
http://statistics.data.gov.uk/doc/local-authority/00CC,BarnsleyMBC,09/10/2023,5100343864,739.43,Kingfisher UPVC Doors and Windows L,535349,BH,Direct - Building Items,403013
http://statistics.data.gov.uk/doc/local-authority/00CC,BarnsleyMBC,09/10/2023,5100343867,795.82,Kingfisher UPVC Doors and Windows L,535349,BH,Direct - Building Items,403013
http://statistics.data.gov.uk/doc/local-authority/00CC,BarnsleyMBC,11/10/2023,5100343781,736.14,Kingfisher UPVC Doors and Windows L,535349,BH,Direct - UPVC Parts,403015
http://statistics.data.gov.uk/doc/local-authority/00CC,BarnsleyMBC,11/10/2023,5100343782,795.61,Kingfisher UPVC Doors and Windows L,535349,BH,,
http://statistics.data.gov.uk/doc/local-authority/00CC,BarnsleyMBC,11/10/2023,5100343862,829.37,Kingfisher UPVC Doors and Windows L,535349,BH,,
http://statistics.data.gov.uk/doc/local-authority/00CC,BarnsleyMBC,11/10/2023,5100343861,846.44,Kingfisher UPVC Doors and Windows L,535349,BH,Direct - UPVC Parts,403015
http://statistics.data.gov.uk/doc/local-authority/00CC,BarnsleyMBC,11/10/2023,5100343783,853.14,Kingfisher UPVC Doors and Windows L,535349,BH,Direct - UPVC Parts,403015
http://statistics.data.gov.uk/doc/local-authority/00CC,BarnsleyMBC,19/10/2023,5100344314,"2,803.20",MCP ENVIRONMENTAL LLP,551926,BH,Main contractor,506011
http://statistics.data.gov.uk/doc/local-authority/00CC,BarnsleyMBC,31/10/2023,5100344851,"6,092.40",MCP ENVIRONMENTAL LLP,551926,BH,Main contractor,506011
http://statistics.data.gov.uk/doc/local-authority/00CC,BarnsleyMBC,31/10/2023,5100344852,"19,445.26",MCP ENVIRONMENTAL LLP,551926,BH,Fixtures and Fittings - Purchase,220001
http://statistics.data.gov.uk/doc/local-authority/00CC,BarnsleyMBC,19/10/2023,5100344396,942.72,MITSUBISHI ELECTRIC EUROPE BV,525543,BH,Basic pay - Agency Fees,104001
http://statistics.data.gov.uk/doc/local-authority/00CC,BarnsleyMBC,27/10/2023,5100344713,"1,408.26",MITSUBISHI ELECTRIC EUROPE BV,525543,BH,Direct - Building Items,403013
http://statistics.data.gov.uk/doc/local-authority/00CC,BarnsleyMBC,12/10/2023,5100344032,"1,232.22",MORGAN LAMBERT LTD,521517,BH,,
http://statistics.data.gov.uk/doc/local-authority/00CC,BarnsleyMBC,27/10/2023,1900027550,"1,478.20",N H STORBECK,526790,BH,Basic pay - Agency Fees,104001
http://statistics.data.gov.uk/doc/local-authority/00CC,BarnsleyMBC,17/10/2023,5100344237,"23,801.80",NORSE COMMERCIAL SERVICES LIMITED,552432,BH,Tuition fees,424025
http://statistics.data.gov.uk/doc/local-authority/00CC,BarnsleyMBC,19/10/2023,5100344383,"23,801.80",NORSE COMMERCIAL SERVICES LIMITED,552432,BH,,
http://statistics.data.gov.uk/doc/local-authority/00CC,BarnsleyMBC,31/10/2023,5100344849,"23,801.80",NORSE COMMERCIAL SERVICES LIMITED,552432,BH,Training Courses,112001
http://statistics.data.gov.uk/doc/local-authority/00CC,BarnsleyMBC,19/10/2023,5100344390,"2,942.40",Nu-Build (Barnsley) Ltd,552671,BH,Main contractor,506011
http://statistics.data.gov.uk/doc/local-authority/00CC,BarnsleyMBC,19/10/2023,5100344388,"8,640.00",Nu-Build (Barnsley) Ltd,552671,BH,Main contractor,506011
http://statistics.data.gov.uk/doc/local-authority/00CC,BarnsleyMBC,19/10/2023,5100344389,"40,906.21",Nu-Build (Barnsley) Ltd,552671,BH,Basic pay - Agency Fees,104001
http://statistics.data.gov.uk/doc/local-authority/00CC,BarnsleyMBC,06/10/2023,5100343676,"27,464.40",ONE CONSULTING & ASSOCIATES LIMITED,539742,BH,Direct - Building Items,403013
http://statistics.data.gov.uk/doc/local-authority/00CC,BarnsleyMBC,02/10/2023,1900027459,600,One Time Vendor - Creditors,1000001,BH,,
http://statistics.data.gov.uk/doc/local-authority/00CC,BarnsleyMBC,04/10/2023,1900027473,500,One Time Vendor - Creditors,1000001,BH,,
http://statistics.data.gov.uk/doc/local-authority/00CC,BarnsleyMBC,11/10/2023,1900027503,500,One Time Vendor - Creditors,1000001,BH,Direct - UPVC Parts,403015
http://statistics.data.gov.uk/doc/local-authority/00CC,BarnsleyMBC,25/10/2023,1900027544,500,One Time Vendor - Creditors,1000001,BH,Training Courses,112001
http://statistics.data.gov.uk/doc/local-authority/00CC,BarnsleyMBC,30/10/2023,1900027554,500,One Time Vendor - Creditors,1000001,BH,Basic pay - Agency Fees,104001
http://statistics.data.gov.uk/doc/local-authority/00CC,BarnsleyMBC,31/10/2023,1900027560,879.45,One Time Vendor - Creditors,1000001,BH,Cleaning -  Buildings - External Provide,240001
http://statistics.data.gov.uk/doc/local-authority/00CC,BarnsleyMBC,31/10/2023,1900027558,900,One Time Vendor - Creditors,1000001,BH,Expenses - Compensation Payments,460010
http://statistics.data.gov.uk/doc/local-authority/00CC,BarnsleyMBC,17/10/2023,1900027522,"1,440.00",ONE TIME VENDORS - COMPANIES,1000025,BH,,
http://statistics.data.gov.uk/doc/local-authority/00CC,BarnsleyMBC,06/10/2023,5100343654,"81,662.40",P BIDDLESTONE GROUNDWORKS & MAINT,551078,BH,Main contractor,506011
http://statistics.data.gov.uk/doc/local-authority/00CC,BarnsleyMBC,06/10/2023,5100343648,"131,967.00",P BIDDLESTONE GROUNDWORKS & MAINT,551078,BH,Consultants Fees,424007
http://statistics.data.gov.uk/doc/local-authority/00CC,BarnsleyMBC,19/10/2023,5100344376,953.4,P BIDDLESTONE GROUNDWORKS & MAINT,551078,BH,Basic pay - Agency Fees,104001
http://statistics.data.gov.uk/doc/local-authority/00CC,BarnsleyMBC,06/10/2023,5100343733,682.97,PENNINGTON CHOICES LTD,528871,BH,Energy - Fuel Oil,210003
http://statistics.data.gov.uk/doc/local-authority/00CC,BarnsleyMBC,10/10/2023,5100343933,"1,462.46",PENNINGTON CHOICES LTD,528871,BH,Subscriptions & Contributions,430002
http://statistics.data.gov.uk/doc/local-authority/00CC,BarnsleyMBC,11/10/2023,5100343953,558.79,PENNINGTON CHOICES LTD,528871,BH,Direct - Building Items,403013
http://statistics.data.gov.uk/doc/local-authority/00CC,BarnsleyMBC,11/10/2023,5100343956,682.97,PENNINGTON CHOICES LTD,528871,BH,Direct - Building Items,403013
http://statistics.data.gov.uk/doc/local-authority/00CC,BarnsleyMBC,12/10/2023,5100344054,"6,394.08",PENNINGTON CHOICES LTD,528871,BH,Main contractor,506011
http://statistics.data.gov.uk/doc/local-authority/00CC,BarnsleyMBC,19/10/2023,5100344415,"2,731.84",PENNINGTON CHOICES LTD,528871,BH,Main contractor,506011
http://statistics.data.gov.uk/doc/local-authority/00CC,BarnsleyMBC,25/10/2023,5100344530,"1,085.90",PENNINGTON CHOICES LTD,528871,BH,Water Rates,213001
http://statistics.data.gov.uk/doc/local-authority/00CC,BarnsleyMBC,02/10/2023,5100343561,"1,201.64",POWERTECH INDUSTRIAL LTD,502518,BH,Main contractor,506011
http://statistics.data.gov.uk/doc/local-authority/00CC,BarnsleyMBC,02/10/2023,5100343534,"1,724.70",POWERTECH INDUSTRIAL LTD,502518,BH,Direct - Tools & Parts,403019
http://statistics.data.gov.uk/doc/local-authority/00CC,BarnsleyMBC,03/10/2023,5100343608,968.78,POWERTECH INDUSTRIAL LTD,502518,BH,,
http://statistics.data.gov.uk/doc/local-authority/00CC,BarnsleyMBC,06/10/2023,5100343820,"3,317.68",POWERTECH INDUSTRIAL LTD,502518,BH,Employee Welfare - Medical Care,115001
http://statistics.data.gov.uk/doc/local-authority/00CC,BarnsleyMBC,19/10/2023,5100344397,"2,188.80",POWERTECH INDUSTRIAL LTD,502518,BH,Basic pay - Agency Fees,104001
http://statistics.data.gov.uk/doc/local-authority/00CC,BarnsleyMBC,20/10/2023,5100344447,"-1,040.40",POWERTECH INDUSTRIAL LTD,502518,BH,Direct - Tools & Parts,403019
http://statistics.data.gov.uk/doc/local-authority/00CC,BarnsleyMBC,20/10/2023,5100344426,618,POWERTECH INDUSTRIAL LTD,502518,BH,Data Communications,426012
http://statistics.data.gov.uk/doc/local-authority/00CC,BarnsleyMBC,20/10/2023,5100344471,784.79,POWERTECH INDUSTRIAL LTD,502518,BH,Direct - Building Items,403013
http://statistics.data.gov.uk/doc/local-authority/00CC,BarnsleyMBC,25/10/2023,5100344619,"1,580.40",POWERTECH INDUSTRIAL LTD,502518,BH,,
http://statistics.data.gov.uk/doc/local-authority/00CC,BarnsleyMBC,30/10/2023,5100344615,"3,486.60",PRO CARE SHOWER & BATHROOM CENTRE L,540238,BH,,
http://statistics.data.gov.uk/doc/local-authority/00CC,BarnsleyMBC,12/10/2023,5200083832,508.43,REED SPECIALIST RECRUITMENT LTD,502689,BH,Basic pay - Agency Fees,104001
http://statistics.data.gov.uk/doc/local-authority/00CC,BarnsleyMBC,12/10/2023,5200083817,516.96,REED SPECIALIST RECRUITMENT LTD,502689,BH,Basic pay - Agency Fees,104001
http://statistics.data.gov.uk/doc/local-authority/00CC,BarnsleyMBC,12/10/2023,5200083802,519.5,REED SPECIALIST RECRUITMENT LTD,502689,BH,Basic pay - Agency Fees,104001
http://statistics.data.gov.uk/doc/local-authority/00CC,BarnsleyMBC,12/10/2023,5200083859,534.24,REED SPECIALIST RECRUITMENT LTD,502689,BH,Basic pay - Agency Fees,104001
http://statistics.data.gov.uk/doc/local-authority/00CC,BarnsleyMBC,12/10/2023,5200083855,565.68,REED SPECIALIST RECRUITMENT LTD,502689,BH,Basic pay - Agency Fees,104001
http://statistics.data.gov.uk/doc/local-authority/00CC,BarnsleyMBC,12/10/2023,5200083813,565.68,REED SPECIALIST RECRUITMENT LTD,502689,BH,Basic pay - Agency Fees,104001
http://statistics.data.gov.uk/doc/local-authority/00CC,BarnsleyMBC,12/10/2023,5200083853,573.95,REED SPECIALIST RECRUITMENT LTD,502689,BH,Basic pay - Agency Fees,104001
http://statistics.data.gov.uk/doc/local-authority/00CC,BarnsleyMBC,12/10/2023,5200083810,573.95,REED SPECIALIST RECRUITMENT LTD,502689,BH,Basic pay - Agency Fees,104001
http://statistics.data.gov.uk/doc/local-authority/00CC,BarnsleyMBC,12/10/2023,5200083842,665.53,REED SPECIALIST RECRUITMENT LTD,502689,BH,Basic pay - Agency Fees,104001
http://statistics.data.gov.uk/doc/local-authority/00CC,BarnsleyMBC,12/10/2023,5200083803,676.8,REED SPECIALIST RECRUITMENT LTD,502689,BH,Basic pay - Agency Fees,104001
http://statistics.data.gov.uk/doc/local-authority/00CC,BarnsleyMBC,12/10/2023,5200083791,687.44,REED SPECIALIST RECRUITMENT LTD,502689,BH,Basic pay - Agency Fees,104001
http://statistics.data.gov.uk/doc/local-authority/00CC,BarnsleyMBC,12/10/2023,5200083795,696.33,REED SPECIALIST RECRUITMENT LTD,502689,BH,Basic pay - Agency Fees,104001
http://statistics.data.gov.uk/doc/local-authority/00CC,BarnsleyMBC,12/10/2023,5200083835,696.33,REED SPECIALIST RECRUITMENT LTD,502689,BH,Basic pay - Agency Fees,104001
http://statistics.data.gov.uk/doc/local-authority/00CC,BarnsleyMBC,12/10/2023,5200083801,697.67,REED SPECIALIST RECRUITMENT LTD,502689,BH,Basic pay - Agency Fees,104001
http://statistics.data.gov.uk/doc/local-authority/00CC,BarnsleyMBC,12/10/2023,5200083863,697.67,REED SPECIALIST RECRUITMENT LTD,502689,BH,Basic pay - Agency Fees,104001
http://statistics.data.gov.uk/doc/local-authority/00CC,BarnsleyMBC,12/10/2023,5200083820,697.67,REED SPECIALIST RECRUITMENT LTD,502689,BH,Basic pay - Agency Fees,104001
http://statistics.data.gov.uk/doc/local-authority/00CC,BarnsleyMBC,12/10/2023,5200083840,697.67,REED SPECIALIST RECRUITMENT LTD,502689,BH,,
http://statistics.data.gov.uk/doc/local-authority/00CC,BarnsleyMBC,12/10/2023,5200083850,703.07,REED SPECIALIST RECRUITMENT LTD,502689,BH,Basic pay - Agency Fees,104001
http://statistics.data.gov.uk/doc/local-authority/00CC,BarnsleyMBC,12/10/2023,5200083858,713.62,REED SPECIALIST RECRUITMENT LTD,502689,BH,Basic pay - Agency Fees,104001
http://statistics.data.gov.uk/doc/local-authority/00CC,BarnsleyMBC,12/10/2023,5200083816,713.62,REED SPECIALIST RECRUITMENT LTD,502689,BH,Basic pay - Agency Fees,104001
http://statistics.data.gov.uk/doc/local-authority/00CC,BarnsleyMBC,12/10/2023,5200083789,723.54,REED SPECIALIST RECRUITMENT LTD,502689,BH,Basic pay - Agency Fees,104001
http://statistics.data.gov.uk/doc/local-authority/00CC,BarnsleyMBC,12/10/2023,5200083860,726.52,REED SPECIALIST RECRUITMENT LTD,502689,BH,Basic pay - Agency Fees,104001
http://statistics.data.gov.uk/doc/local-authority/00CC,BarnsleyMBC,12/10/2023,5200083818,726.52,REED SPECIALIST RECRUITMENT LTD,502689,BH,Basic pay - Agency Fees,104001
http://statistics.data.gov.uk/doc/local-authority/00CC,BarnsleyMBC,12/10/2023,5200083790,727.78,REED SPECIALIST RECRUITMENT LTD,502689,BH,Basic pay - Agency Fees,104001
http://statistics.data.gov.uk/doc/local-authority/00CC,BarnsleyMBC,12/10/2023,5200083799,729,REED SPECIALIST RECRUITMENT LTD,502689,BH,Basic pay - Agency Fees,104001
http://statistics.data.gov.uk/doc/local-authority/00CC,BarnsleyMBC,12/10/2023,5200083809,747.04,REED SPECIALIST RECRUITMENT LTD,502689,BH,Basic pay - Agency Fees,104001
http://statistics.data.gov.uk/doc/local-authority/00CC,BarnsleyMBC,12/10/2023,5200083800,826.26,REED SPECIALIST RECRUITMENT LTD,502689,BH,Basic pay - Agency Fees,104001
http://statistics.data.gov.uk/doc/local-authority/00CC,BarnsleyMBC,12/10/2023,5200083865,827.57,REED SPECIALIST RECRUITMENT LTD,502689,BH,Basic pay - Agency Fees,104001
http://statistics.data.gov.uk/doc/local-authority/00CC,BarnsleyMBC,12/10/2023,5200083794,851.12,REED SPECIALIST RECRUITMENT LTD,502689,BH,Basic pay - Agency Fees,104001
http://statistics.data.gov.uk/doc/local-authority/00CC,BarnsleyMBC,12/10/2023,5200083798,871.3,REED SPECIALIST RECRUITMENT LTD,502689,BH,Basic pay - Agency Fees,104001
http://statistics.data.gov.uk/doc/local-authority/00CC,BarnsleyMBC,12/10/2023,5200083864,871.3,REED SPECIALIST RECRUITMENT LTD,502689,BH,Basic pay - Agency Fees,104001
http://statistics.data.gov.uk/doc/local-authority/00CC,BarnsleyMBC,12/10/2023,5200083838,871.3,REED SPECIALIST RECRUITMENT LTD,502689,BH,Basic pay - Agency Fees,104001
http://statistics.data.gov.uk/doc/local-authority/00CC,BarnsleyMBC,12/10/2023,5200083784,872.02,REED SPECIALIST RECRUITMENT LTD,502689,BH,Basic pay - Agency Fees,104001
http://statistics.data.gov.uk/doc/local-authority/00CC,BarnsleyMBC,12/10/2023,5200083862,874.85,REED SPECIALIST RECRUITMENT LTD,502689,BH,Basic pay - Agency Fees,104001
http://statistics.data.gov.uk/doc/local-authority/00CC,BarnsleyMBC,12/10/2023,5200083861,874.85,REED SPECIALIST RECRUITMENT LTD,502689,BH,Basic pay - Agency Fees,104001
http://statistics.data.gov.uk/doc/local-authority/00CC,BarnsleyMBC,12/10/2023,5200083852,883.79,REED SPECIALIST RECRUITMENT LTD,502689,BH,Basic pay - Agency Fees,104001
http://statistics.data.gov.uk/doc/local-authority/00CC,BarnsleyMBC,12/10/2023,5200083851,883.8,REED SPECIALIST RECRUITMENT LTD,502689,BH,Basic pay - Agency Fees,104001
http://statistics.data.gov.uk/doc/local-authority/00CC,BarnsleyMBC,12/10/2023,5200083806,885.26,REED SPECIALIST RECRUITMENT LTD,502689,BH,Direct - Building Items,403013
http://statistics.data.gov.uk/doc/local-authority/00CC,BarnsleyMBC,12/10/2023,5200083788,885.26,REED SPECIALIST RECRUITMENT LTD,502689,BH,Basic pay - Agency Fees,104001
http://statistics.data.gov.uk/doc/local-authority/00CC,BarnsleyMBC,12/10/2023,5200083831,885.26,REED SPECIALIST RECRUITMENT LTD,502689,BH,Basic pay - Agency Fees,104001
http://statistics.data.gov.uk/doc/local-authority/00CC,BarnsleyMBC,12/10/2023,5200083845,885.26,REED SPECIALIST RECRUITMENT LTD,502689,BH,Basic pay - Agency Fees,104001
http://statistics.data.gov.uk/doc/local-authority/00CC,BarnsleyMBC,12/10/2023,5200083821,886.77,REED SPECIALIST RECRUITMENT LTD,502689,BH,Basic pay - Agency Fees,104001
http://statistics.data.gov.uk/doc/local-authority/00CC,BarnsleyMBC,12/10/2023,5200083854,888.81,REED SPECIALIST RECRUITMENT LTD,502689,BH,Basic pay - Agency Fees,104001
http://statistics.data.gov.uk/doc/local-authority/00CC,BarnsleyMBC,12/10/2023,5200083812,888.81,REED SPECIALIST RECRUITMENT LTD,502689,BH,Basic pay - Agency Fees,104001
http://statistics.data.gov.uk/doc/local-authority/00CC,BarnsleyMBC,12/10/2023,5200083839,899.09,REED SPECIALIST RECRUITMENT LTD,502689,BH,Basic pay - Agency Fees,104001
http://statistics.data.gov.uk/doc/local-authority/00CC,BarnsleyMBC,12/10/2023,5200083804,911.89,REED SPECIALIST RECRUITMENT LTD,502689,BH,Basic pay - Agency Fees,104001
http://statistics.data.gov.uk/doc/local-authority/00CC,BarnsleyMBC,12/10/2023,5200083797,911.89,REED SPECIALIST RECRUITMENT LTD,502689,BH,Basic pay - Agency Fees,104001
http://statistics.data.gov.uk/doc/local-authority/00CC,BarnsleyMBC,12/10/2023,5200083787,911.89,REED SPECIALIST RECRUITMENT LTD,502689,BH,Basic pay - Agency Fees,104001
http://statistics.data.gov.uk/doc/local-authority/00CC,BarnsleyMBC,12/10/2023,5200083786,911.89,REED SPECIALIST RECRUITMENT LTD,502689,BH,Basic pay - Agency Fees,104001
http://statistics.data.gov.uk/doc/local-authority/00CC,BarnsleyMBC,12/10/2023,5200083807,911.89,REED SPECIALIST RECRUITMENT LTD,502689,BH,Basic pay - Agency Fees,104001
http://statistics.data.gov.uk/doc/local-authority/00CC,BarnsleyMBC,12/10/2023,5200083849,911.89,REED SPECIALIST RECRUITMENT LTD,502689,BH,Basic pay - Agency Fees,104001
http://statistics.data.gov.uk/doc/local-authority/00CC,BarnsleyMBC,12/10/2023,5200083848,911.89,REED SPECIALIST RECRUITMENT LTD,502689,BH,Basic pay - Agency Fees,104001
http://statistics.data.gov.uk/doc/local-authority/00CC,BarnsleyMBC,12/10/2023,5200083847,911.89,REED SPECIALIST RECRUITMENT LTD,502689,BH,Basic pay - Agency Fees,104001
http://statistics.data.gov.uk/doc/local-authority/00CC,BarnsleyMBC,12/10/2023,5200083808,911.89,REED SPECIALIST RECRUITMENT LTD,502689,BH,Basic pay - Agency Fees,104001
http://statistics.data.gov.uk/doc/local-authority/00CC,BarnsleyMBC,12/10/2023,5200083822,911.89,REED SPECIALIST RECRUITMENT LTD,502689,BH,Basic pay - Agency Fees,104001
http://statistics.data.gov.uk/doc/local-authority/00CC,BarnsleyMBC,12/10/2023,5200083828,911.89,REED SPECIALIST RECRUITMENT LTD,502689,BH,Basic pay - Agency Fees,104001
http://statistics.data.gov.uk/doc/local-authority/00CC,BarnsleyMBC,12/10/2023,5200083829,911.89,REED SPECIALIST RECRUITMENT LTD,502689,BH,Basic pay - Agency Fees,104001
http://statistics.data.gov.uk/doc/local-authority/00CC,BarnsleyMBC,12/10/2023,5200083837,911.89,REED SPECIALIST RECRUITMENT LTD,502689,BH,Basic pay - Agency Fees,104001
http://statistics.data.gov.uk/doc/local-authority/00CC,BarnsleyMBC,12/10/2023,5200083843,911.89,REED SPECIALIST RECRUITMENT LTD,502689,BH,Basic pay - Agency Fees,104001
http://statistics.data.gov.uk/doc/local-authority/00CC,BarnsleyMBC,12/10/2023,5200083846,911.89,REED SPECIALIST RECRUITMENT LTD,502689,BH,Basic pay - Agency Fees,104001
http://statistics.data.gov.uk/doc/local-authority/00CC,BarnsleyMBC,12/10/2023,5200083830,912.78,REED SPECIALIST RECRUITMENT LTD,502689,BH,Basic pay - Agency Fees,104001
http://statistics.data.gov.uk/doc/local-authority/00CC,BarnsleyMBC,12/10/2023,5200083833,912.78,REED SPECIALIST RECRUITMENT LTD,502689,BH,Basic pay - Agency Fees,104001
http://statistics.data.gov.uk/doc/local-authority/00CC,BarnsleyMBC,12/10/2023,5200083834,912.78,REED SPECIALIST RECRUITMENT LTD,502689,BH,Basic pay - Agency Fees,104001
http://statistics.data.gov.uk/doc/local-authority/00CC,BarnsleyMBC,12/10/2023,5200083844,936.82,REED SPECIALIST RECRUITMENT LTD,502689,BH,Basic pay - Agency Fees,104001
http://statistics.data.gov.uk/doc/local-authority/00CC,BarnsleyMBC,12/10/2023,5200083823,936.83,REED SPECIALIST RECRUITMENT LTD,502689,BH,Basic pay - Agency Fees,104001
http://statistics.data.gov.uk/doc/local-authority/00CC,BarnsleyMBC,12/10/2023,5200083796,948.93,REED SPECIALIST RECRUITMENT LTD,502689,BH,Basic pay - Agency Fees,104001
http://statistics.data.gov.uk/doc/local-authority/00CC,BarnsleyMBC,12/10/2023,5200083826,948.93,REED SPECIALIST RECRUITMENT LTD,502689,BH,Basic pay - Agency Fees,104001
http://statistics.data.gov.uk/doc/local-authority/00CC,BarnsleyMBC,12/10/2023,5200083815,949.82,REED SPECIALIST RECRUITMENT LTD,502689,BH,Basic pay - Agency Fees,104001
http://statistics.data.gov.uk/doc/local-authority/00CC,BarnsleyMBC,12/10/2023,5200083805,952.3,REED SPECIALIST RECRUITMENT LTD,502689,BH,Basic pay - Agency Fees,104001
http://statistics.data.gov.uk/doc/local-authority/00CC,BarnsleyMBC,12/10/2023,5200083793,"1,065.15",REED SPECIALIST RECRUITMENT LTD,502689,BH,Basic pay - Agency Fees,104001
http://statistics.data.gov.uk/doc/local-authority/00CC,BarnsleyMBC,12/10/2023,5200083792,"1,065.15",REED SPECIALIST RECRUITMENT LTD,502689,BH,Basic pay - Agency Fees,104001
http://statistics.data.gov.uk/doc/local-authority/00CC,BarnsleyMBC,12/10/2023,5200083836,"1,099.83",REED SPECIALIST RECRUITMENT LTD,502689,BH,Basic pay - Agency Fees,104001
http://statistics.data.gov.uk/doc/local-authority/00CC,BarnsleyMBC,12/10/2023,5200083841,"1,154.17",REED SPECIALIST RECRUITMENT LTD,502689,BH,Basic pay - Agency Fees,104001
http://statistics.data.gov.uk/doc/local-authority/00CC,BarnsleyMBC,12/10/2023,5200083827,"1,242.20",REED SPECIALIST RECRUITMENT LTD,502689,BH,Basic pay - Agency Fees,104001
http://statistics.data.gov.uk/doc/local-authority/00CC,BarnsleyMBC,12/10/2023,5200083785,"1,334.14",REED SPECIALIST RECRUITMENT LTD,502689,BH,Basic pay - Agency Fees,104001
http://statistics.data.gov.uk/doc/local-authority/00CC,BarnsleyMBC,12/10/2023,5200083811,"1,481.42",REED SPECIALIST RECRUITMENT LTD,502689,BH,Basic pay - Agency Fees,104001
http://statistics.data.gov.uk/doc/local-authority/00CC,BarnsleyMBC,12/10/2023,5200083857,"1,587.32",REED SPECIALIST RECRUITMENT LTD,502689,BH,Basic pay - Agency Fees,104001
http://statistics.data.gov.uk/doc/local-authority/00CC,BarnsleyMBC,19/10/2023,5200083900,534.24,REED SPECIALIST RECRUITMENT LTD,502689,BH,Direct - Fuel & Gas,403017
http://statistics.data.gov.uk/doc/local-authority/00CC,BarnsleyMBC,19/10/2023,5200083897,565.68,REED SPECIALIST RECRUITMENT LTD,502689,BH,Basic pay - Agency Fees,104001
http://statistics.data.gov.uk/doc/local-authority/00CC,BarnsleyMBC,19/10/2023,5200083892,616.16,REED SPECIALIST RECRUITMENT LTD,502689,BH,Basic pay - Agency Fees,104001
http://statistics.data.gov.uk/doc/local-authority/00CC,BarnsleyMBC,19/10/2023,5200083901,628.35,REED SPECIALIST RECRUITMENT LTD,502689,BH,Basic pay - Agency Fees,104001
http://statistics.data.gov.uk/doc/local-authority/00CC,BarnsleyMBC,19/10/2023,5200083882,696.33,REED SPECIALIST RECRUITMENT LTD,502689,BH,Direct - Building Items,403013
http://statistics.data.gov.uk/doc/local-authority/00CC,BarnsleyMBC,19/10/2023,5200083906,697.52,REED SPECIALIST RECRUITMENT LTD,502689,BH,Cleaning -  Buildings - External Provide,240001
http://statistics.data.gov.uk/doc/local-authority/00CC,BarnsleyMBC,19/10/2023,5200083886,697.67,REED SPECIALIST RECRUITMENT LTD,502689,BH,Basic pay - Agency Fees,104001
http://statistics.data.gov.uk/doc/local-authority/00CC,BarnsleyMBC,19/10/2023,5200083904,697.67,REED SPECIALIST RECRUITMENT LTD,502689,BH,Basic pay - Agency Fees,104001
http://statistics.data.gov.uk/doc/local-authority/00CC,BarnsleyMBC,19/10/2023,5200083903,699,REED SPECIALIST RECRUITMENT LTD,502689,BH,Basic pay - Agency Fees,104001
http://statistics.data.gov.uk/doc/local-authority/00CC,BarnsleyMBC,19/10/2023,5200083899,713.62,REED SPECIALIST RECRUITMENT LTD,502689,BH,Basic pay - Agency Fees,104001
http://statistics.data.gov.uk/doc/local-authority/00CC,BarnsleyMBC,19/10/2023,5200083883,795.05,REED SPECIALIST RECRUITMENT LTD,502689,BH,Basic pay - Agency Fees,104001
http://statistics.data.gov.uk/doc/local-authority/00CC,BarnsleyMBC,19/10/2023,5200083893,812.94,REED SPECIALIST RECRUITMENT LTD,502689,BH,Basic pay - Agency Fees,104001
http://statistics.data.gov.uk/doc/local-authority/00CC,BarnsleyMBC,19/10/2023,5200083881,814.12,REED SPECIALIST RECRUITMENT LTD,502689,BH,Basic pay - Agency Fees,104001
http://statistics.data.gov.uk/doc/local-authority/00CC,BarnsleyMBC,19/10/2023,5200083887,834.71,REED SPECIALIST RECRUITMENT LTD,502689,BH,Basic pay - Agency Fees,104001
http://statistics.data.gov.uk/doc/local-authority/00CC,BarnsleyMBC,19/10/2023,5200083884,871.3,REED SPECIALIST RECRUITMENT LTD,502689,BH,,
http://statistics.data.gov.uk/doc/local-authority/00CC,BarnsleyMBC,19/10/2023,5200083905,871.3,REED SPECIALIST RECRUITMENT LTD,502689,BH,,
http://statistics.data.gov.uk/doc/local-authority/00CC,BarnsleyMBC,19/10/2023,5200083902,874.85,REED SPECIALIST RECRUITMENT LTD,502689,BH,Basic pay - Agency Fees,104001
http://statistics.data.gov.uk/doc/local-authority/00CC,BarnsleyMBC,19/10/2023,5200083894,883.8,REED SPECIALIST RECRUITMENT LTD,502689,BH,Main contractor,506011
http://statistics.data.gov.uk/doc/local-authority/00CC,BarnsleyMBC,19/10/2023,5200083878,885.26,REED SPECIALIST RECRUITMENT LTD,502689,BH,Waste & Recycling contract,506021
http://statistics.data.gov.uk/doc/local-authority/00CC,BarnsleyMBC,19/10/2023,5200083885,899.09,REED SPECIALIST RECRUITMENT LTD,502689,BH,Main contractor,506011
http://statistics.data.gov.uk/doc/local-authority/00CC,BarnsleyMBC,19/10/2023,5200083888,911.89,REED SPECIALIST RECRUITMENT LTD,502689,BH,Basic pay - Agency Fees,104001
http://statistics.data.gov.uk/doc/local-authority/00CC,BarnsleyMBC,19/10/2023,5200083876,911.89,REED SPECIALIST RECRUITMENT LTD,502689,BH,Basic pay - Agency Fees,104001
http://statistics.data.gov.uk/doc/local-authority/00CC,BarnsleyMBC,19/10/2023,5200083877,911.89,REED SPECIALIST RECRUITMENT LTD,502689,BH,Main contractor,506011
http://statistics.data.gov.uk/doc/local-authority/00CC,BarnsleyMBC,19/10/2023,5200083890,911.89,REED SPECIALIST RECRUITMENT LTD,502689,BH,Main contractor,506011
http://statistics.data.gov.uk/doc/local-authority/00CC,BarnsleyMBC,19/10/2023,5200083891,911.89,REED SPECIALIST RECRUITMENT LTD,502689,BH,Basic pay - Agency Fees,104001
http://statistics.data.gov.uk/doc/local-authority/00CC,BarnsleyMBC,19/10/2023,5200083880,912.78,REED SPECIALIST RECRUITMENT LTD,502689,BH,,
http://statistics.data.gov.uk/doc/local-authority/00CC,BarnsleyMBC,19/10/2023,5200083889,936.82,REED SPECIALIST RECRUITMENT LTD,502689,BH,Community Services,505045
http://statistics.data.gov.uk/doc/local-authority/00CC,BarnsleyMBC,19/10/2023,5200083874,948.93,REED SPECIALIST RECRUITMENT LTD,502689,BH,Direct - Tools & Parts,403019
http://statistics.data.gov.uk/doc/local-authority/00CC,BarnsleyMBC,19/10/2023,5200083896,"1,101.59",REED SPECIALIST RECRUITMENT LTD,502689,BH,,
http://statistics.data.gov.uk/doc/local-authority/00CC,BarnsleyMBC,19/10/2023,5200083875,"1,322.64",REED SPECIALIST RECRUITMENT LTD,502689,BH,Basic pay - Agency Fees,104001
http://statistics.data.gov.uk/doc/local-authority/00CC,BarnsleyMBC,19/10/2023,5200083898,"1,436.33",REED SPECIALIST RECRUITMENT LTD,502689,BH,Basic pay - Agency Fees,104001
http://statistics.data.gov.uk/doc/local-authority/00CC,BarnsleyMBC,27/10/2023,5200084681,555.09,REED SPECIALIST RECRUITMENT LTD,502689,BH,Equipment - Repair and Maintenance,400003
http://statistics.data.gov.uk/doc/local-authority/00CC,BarnsleyMBC,27/10/2023,5200084706,565.68,REED SPECIALIST RECRUITMENT LTD,502689,BH,Basic pay - Agency Fees,104001
http://statistics.data.gov.uk/doc/local-authority/00CC,BarnsleyMBC,27/10/2023,5200084705,565.68,REED SPECIALIST RECRUITMENT LTD,502689,BH,Basic pay - Agency Fees,104001
http://statistics.data.gov.uk/doc/local-authority/00CC,BarnsleyMBC,27/10/2023,5200084711,566.76,REED SPECIALIST RECRUITMENT LTD,502689,BH,Basic pay - Agency Fees,104001
http://statistics.data.gov.uk/doc/local-authority/00CC,BarnsleyMBC,27/10/2023,5200084709,589.08,REED SPECIALIST RECRUITMENT LTD,502689,BH,Basic pay - Agency Fees,104001
http://statistics.data.gov.uk/doc/local-authority/00CC,BarnsleyMBC,27/10/2023,5200084680,644.52,REED SPECIALIST RECRUITMENT LTD,502689,BH,Direct - Building Items,403013
http://statistics.data.gov.uk/doc/local-authority/00CC,BarnsleyMBC,27/10/2023,5200084686,674.82,REED SPECIALIST RECRUITMENT LTD,502689,BH,Basic pay - Agency Fees,104001
http://statistics.data.gov.uk/doc/local-authority/00CC,BarnsleyMBC,27/10/2023,5200084684,696.33,REED SPECIALIST RECRUITMENT LTD,502689,BH,Property Rents,211002
http://statistics.data.gov.uk/doc/local-authority/00CC,BarnsleyMBC,27/10/2023,5200084712,697.67,REED SPECIALIST RECRUITMENT LTD,502689,BH,Basic pay - Agency Fees,104001
http://statistics.data.gov.uk/doc/local-authority/00CC,BarnsleyMBC,27/10/2023,5200084690,697.67,REED SPECIALIST RECRUITMENT LTD,502689,BH,Basic pay - Agency Fees,104001
http://statistics.data.gov.uk/doc/local-authority/00CC,BarnsleyMBC,27/10/2023,5200084708,713.62,REED SPECIALIST RECRUITMENT LTD,502689,BH,Basic pay - Agency Fees,104001
http://statistics.data.gov.uk/doc/local-authority/00CC,BarnsleyMBC,27/10/2023,5200084679,801.55,REED SPECIALIST RECRUITMENT LTD,502689,BH,Direct - Building Items,403013
http://statistics.data.gov.uk/doc/local-authority/00CC,BarnsleyMBC,27/10/2023,5200084701,812.94,REED SPECIALIST RECRUITMENT LTD,502689,BH,Fixtures and Fittings - Purchase,220001
http://statistics.data.gov.uk/doc/local-authority/00CC,BarnsleyMBC,27/10/2023,5200084698,825.67,REED SPECIALIST RECRUITMENT LTD,502689,BH,Basic pay - Agency Fees,104001
http://statistics.data.gov.uk/doc/local-authority/00CC,BarnsleyMBC,27/10/2023,5200084693,834.71,REED SPECIALIST RECRUITMENT LTD,502689,BH,Basic pay - Agency Fees,104001
http://statistics.data.gov.uk/doc/local-authority/00CC,BarnsleyMBC,27/10/2023,5200084713,871.3,REED SPECIALIST RECRUITMENT LTD,502689,BH,,
http://statistics.data.gov.uk/doc/local-authority/00CC,BarnsleyMBC,27/10/2023,5200084688,871.3,REED SPECIALIST RECRUITMENT LTD,502689,BH,Basic pay - Agency Fees,104001
http://statistics.data.gov.uk/doc/local-authority/00CC,BarnsleyMBC,27/10/2023,5200084691,873.71,REED SPECIALIST RECRUITMENT LTD,502689,BH,Basic pay - Agency Fees,104001
http://statistics.data.gov.uk/doc/local-authority/00CC,BarnsleyMBC,27/10/2023,5200084710,874.85,REED SPECIALIST RECRUITMENT LTD,502689,BH,Fixtures and Fittings - Purchase,220001
http://statistics.data.gov.uk/doc/local-authority/00CC,BarnsleyMBC,27/10/2023,5200084715,874.85,REED SPECIALIST RECRUITMENT LTD,502689,BH,Basic pay - Agency Fees,104001
http://statistics.data.gov.uk/doc/local-authority/00CC,BarnsleyMBC,27/10/2023,5200084702,883.8,REED SPECIALIST RECRUITMENT LTD,502689,BH,Basic pay - Agency Fees,104001
http://statistics.data.gov.uk/doc/local-authority/00CC,BarnsleyMBC,27/10/2023,5200084697,885.26,REED SPECIALIST RECRUITMENT LTD,502689,BH,Basic pay - Agency Fees,104001
http://statistics.data.gov.uk/doc/local-authority/00CC,BarnsleyMBC,27/10/2023,5200084696,885.26,REED SPECIALIST RECRUITMENT LTD,502689,BH,Consultants Fees,424007
http://statistics.data.gov.uk/doc/local-authority/00CC,BarnsleyMBC,27/10/2023,5200084704,888.81,REED SPECIALIST RECRUITMENT LTD,502689,BH,Basic pay - Agency Fees,104001
http://statistics.data.gov.uk/doc/local-authority/00CC,BarnsleyMBC,27/10/2023,5200084692,891.26,REED SPECIALIST RECRUITMENT LTD,502689,BH,Basic pay - Agency Fees,104001
http://statistics.data.gov.uk/doc/local-authority/00CC,BarnsleyMBC,27/10/2023,5200084689,899.09,REED SPECIALIST RECRUITMENT LTD,502689,BH,Basic pay - Agency Fees,104001
http://statistics.data.gov.uk/doc/local-authority/00CC,BarnsleyMBC,27/10/2023,5200084700,911.89,REED SPECIALIST RECRUITMENT LTD,502689,BH,Basic pay - Agency Fees,104001
http://statistics.data.gov.uk/doc/local-authority/00CC,BarnsleyMBC,27/10/2023,5200084699,911.89,REED SPECIALIST RECRUITMENT LTD,502689,BH,Basic pay - Agency Fees,104001
http://statistics.data.gov.uk/doc/local-authority/00CC,BarnsleyMBC,27/10/2023,5200084694,911.89,REED SPECIALIST RECRUITMENT LTD,502689,BH,Basic pay - Agency Fees,104001
http://statistics.data.gov.uk/doc/local-authority/00CC,BarnsleyMBC,27/10/2023,5200084687,911.89,REED SPECIALIST RECRUITMENT LTD,502689,BH,Basic pay - Agency Fees,104001
http://statistics.data.gov.uk/doc/local-authority/00CC,BarnsleyMBC,27/10/2023,5200084677,911.89,REED SPECIALIST RECRUITMENT LTD,502689,BH,Basic pay - Agency Fees,104001
http://statistics.data.gov.uk/doc/local-authority/00CC,BarnsleyMBC,27/10/2023,5200084678,911.89,REED SPECIALIST RECRUITMENT LTD,502689,BH,Basic pay - Agency Fees,104001
http://statistics.data.gov.uk/doc/local-authority/00CC,BarnsleyMBC,27/10/2023,5200084683,912.78,REED SPECIALIST RECRUITMENT LTD,502689,BH,Basic pay - Agency Fees,104001
http://statistics.data.gov.uk/doc/local-authority/00CC,BarnsleyMBC,27/10/2023,5200084675,948.93,REED SPECIALIST RECRUITMENT LTD,502689,BH,Basic pay - Agency Fees,104001
http://statistics.data.gov.uk/doc/local-authority/00CC,BarnsleyMBC,27/10/2023,5200084707,949.82,REED SPECIALIST RECRUITMENT LTD,502689,BH,Basic pay - Agency Fees,104001
http://statistics.data.gov.uk/doc/local-authority/00CC,BarnsleyMBC,27/10/2023,5200084695,967.83,REED SPECIALIST RECRUITMENT LTD,502689,BH,Basic pay - Agency Fees,104001
http://statistics.data.gov.uk/doc/local-authority/00CC,BarnsleyMBC,27/10/2023,5200084676,"1,036.14",REED SPECIALIST RECRUITMENT LTD,502689,BH,Main contractor,506011
http://statistics.data.gov.uk/doc/local-authority/00CC,BarnsleyMBC,02/10/2023,5100343579,"3,531.14",Responsive Electrical Limited,552696,BH,,
http://statistics.data.gov.uk/doc/local-authority/00CC,BarnsleyMBC,19/10/2023,5100344391,"10,125.39",Responsive Electrical Limited,552696,BH,Main contractor,506011
http://statistics.data.gov.uk/doc/local-authority/00CC,BarnsleyMBC,18/10/2023,5100344323,"4,260.00",RightTrack Learning,539251,BH,Main contractor,506011
http://statistics.data.gov.uk/doc/local-authority/00CC,BarnsleyMBC,05/10/2023,5100343711,"1,056.00",Robertson Bell Ltd,540632,BH,,
http://statistics.data.gov.uk/doc/local-authority/00CC,BarnsleyMBC,05/10/2023,5100343770,"2,640.00",Robertson Bell Ltd,540632,BH,Basic pay - Agency Fees,104001
http://statistics.data.gov.uk/doc/local-authority/00CC,BarnsleyMBC,06/10/2023,5100343638,"7,249.50",ROBUST MANAGEMENT SOLUTIONS LTD,540285,BH,,
http://statistics.data.gov.uk/doc/local-authority/00CC,BarnsleyMBC,04/10/2023,5100343639,"11,192.88",ROY WRIGHT & CO LTD,551121,BH,Direct - Building Items,403013
http://statistics.data.gov.uk/doc/local-authority/00CC,BarnsleyMBC,18/10/2023,5100344318,"14,920.91",ROY WRIGHT & CO LTD,551121,BH,Main contractor,506011
http://statistics.data.gov.uk/doc/local-authority/00CC,BarnsleyMBC,18/10/2023,5100344319,"44,304.01",ROY WRIGHT & CO LTD,551121,BH,,
http://statistics.data.gov.uk/doc/local-authority/00CC,BarnsleyMBC,19/10/2023,5100344380,"1,182.00",SAFETY RAMPS UK LTD,551868,BH,Main contractor,506011
http://statistics.data.gov.uk/doc/local-authority/00CC,BarnsleyMBC,18/10/2023,5100344061,"3,800.00",SOUTH WEST YORKSHIRE PARTNERSHIP,524025,BH,Audit Fee,424018
http://statistics.data.gov.uk/doc/local-authority/00CC,BarnsleyMBC,19/10/2023,5100344375,"19,937.89",STEVES STEELS ENGINEERING LTD,551066,BH,Basic pay - Agency Fees,104001
http://statistics.data.gov.uk/doc/local-authority/00CC,BarnsleyMBC,04/10/2023,5100343663,"1,055.17",SYMPHONY GROUP PLC,513131,BH,,
http://statistics.data.gov.uk/doc/local-authority/00CC,BarnsleyMBC,04/10/2023,5100343665,"1,093.13",SYMPHONY GROUP PLC,513131,BH,,
http://statistics.data.gov.uk/doc/local-authority/00CC,BarnsleyMBC,06/10/2023,5100343618,561.4,SYMPHONY GROUP PLC,513131,BH,Fixtures and Fittings - Purchase,220001
http://statistics.data.gov.uk/doc/local-authority/00CC,BarnsleyMBC,06/10/2023,5100343762,561.67,SYMPHONY GROUP PLC,513131,BH,Consultants Fees,424007
http://statistics.data.gov.uk/doc/local-authority/00CC,BarnsleyMBC,06/10/2023,5100343664,769.42,SYMPHONY GROUP PLC,513131,BH,Direct - Tools & Parts,403019
http://statistics.data.gov.uk/doc/local-authority/00CC,BarnsleyMBC,06/10/2023,5100343662,"1,041.74",SYMPHONY GROUP PLC,513131,BH,Fixtures and Fittings - Purchase,220001
http://statistics.data.gov.uk/doc/local-authority/00CC,BarnsleyMBC,16/10/2023,5100344188,957.58,SYMPHONY GROUP PLC,513131,BH,,
http://statistics.data.gov.uk/doc/local-authority/00CC,BarnsleyMBC,20/10/2023,5100344419,531.95,SYMPHONY GROUP PLC,513131,BH,,
http://statistics.data.gov.uk/doc/local-authority/00CC,BarnsleyMBC,31/10/2023,5100344842,761.27,SYMPHONY GROUP PLC,513131,BH,Fixtures and Fittings - Purchase,220001
http://statistics.data.gov.uk/doc/local-authority/00CC,BarnsleyMBC,31/10/2023,5100344843,769.98,SYMPHONY GROUP PLC,513131,BH,Fixtures and Fittings - Purchase,220001
http://statistics.data.gov.uk/doc/local-authority/00CC,BarnsleyMBC,31/10/2023,5100344844,876.56,SYMPHONY GROUP PLC,513131,BH,Main contractor,506011
http://statistics.data.gov.uk/doc/local-authority/00CC,BarnsleyMBC,31/10/2023,5100344841,896.33,SYMPHONY GROUP PLC,513131,BH,Fixtures and Fittings - Purchase,220001
http://statistics.data.gov.uk/doc/local-authority/00CC,BarnsleyMBC,31/10/2023,5100344840,928.49,SYMPHONY GROUP PLC,513131,BH,Training Courses,112001
http://statistics.data.gov.uk/doc/local-authority/00CC,BarnsleyMBC,31/10/2023,5100344839,"1,165.91",SYMPHONY GROUP PLC,513131,BH,Fixtures and Fittings - Purchase,220001
http://statistics.data.gov.uk/doc/local-authority/00CC,BarnsleyMBC,19/10/2023,5100344377,"2,782.20",T K LYNSKEY EXCAVATIONS LTD,551826,BH,Waste & Recycling contract,506021
http://statistics.data.gov.uk/doc/local-authority/00CC,BarnsleyMBC,19/10/2023,5100344378,"15,794.16",T K LYNSKEY EXCAVATIONS LTD,551826,BH,Direct - Building Items,403013
http://statistics.data.gov.uk/doc/local-authority/00CC,BarnsleyMBC,23/10/2023,5100344555,"1,248.05",T K LYNSKEY EXCAVATIONS LTD,551826,BH,Energy - Electricity,210001
http://statistics.data.gov.uk/doc/local-authority/00CC,BarnsleyMBC,27/10/2023,5100344577,"7,980.00",The Flicti Collective Limited,541803,BH,Basic pay - Agency Fees,104001
http://statistics.data.gov.uk/doc/local-authority/00CC,BarnsleyMBC,31/10/2023,5100344804,"2,000.00",The Learning Foundry,542224,BH,Fixtures and Fittings - Purchase,220001
http://statistics.data.gov.uk/doc/local-authority/00CC,BarnsleyMBC,09/10/2023,5100343869,"7,739.40",UNITYDOORS- T/A BRITDOORS,536837,BH,Direct - Building Items,403013
http://statistics.data.gov.uk/doc/local-authority/00CC,BarnsleyMBC,09/10/2023,5100343870,"33,627.46",UNITYDOORS- T/A BRITDOORS,536837,BH,,
http://statistics.data.gov.uk/doc/local-authority/00CC,BarnsleyMBC,11/10/2023,5100343980,693.77,WOLSELEY UK LTD,510002,BH,Training Courses,112001
http://statistics.data.gov.uk/doc/local-authority/00CC,BarnsleyMBC,11/10/2023,5100343978,"6,607.49",WOLSELEY UK LTD,510002,BH,,
http://statistics.data.gov.uk/doc/local-authority/00CC,BarnsleyMBC,13/10/2023,5100344076,"1,532.93",WOLSELEY UK LTD,510002,BH,,
http://statistics.data.gov.uk/doc/local-authority/00CC,BarnsleyMBC,19/10/2023,5100344364,936.84,WOLSELEY UK LTD,510002,BH,Basic pay - Agency Fees,104001
http://statistics.data.gov.uk/doc/local-authority/00CC,BarnsleyMBC,11/10/2023,5100343947,600,Women in Social Housing,531928,BH,,
http://statistics.data.gov.uk/doc/local-authority/00CC,BarnsleyMBC,20/10/2023,5100344452,"3,173.57",ZURICH INSURANCE PLC,503675,BH,Data Communications,426012
